{"text_format":"3","workbook":"xlsx","n_sheets":6,"sheets":["Painel","Vendas","Rendimento","Despesas","Impostos","Categorias"],"not_rendered":{"defined_names":34},"read":"whole","date_system":"1900"}

{"sheet":"Painel","index":0,"n_rows":22,"n_cols":9,"rows_kept":22,"merged":[[5,2,5,8]]}
[]
[]
[null,null,"DEMONSTRAÇÃO DE LUCROS E PERDAS",{"$nulls":4},"Margem bruta atual  [L/J]","Para o mês que termina em 31/08"]
[null,null,"CELULAR SATCOM",{"$nulls":4},"Retorno atual sobre vendas  [T/J]","Declarado em milhares"]
[]
[null,null,"Não modifique as categorias nessa planilha, pois as fórmulas poderão ser interrompidas. Use a planilha Categorias para adicionar categorias e atualizar as planilhas correspondentes com entradas. Esta planilha será atualizada automaticamente."]
[]
[null,null,"Resumo","Total do período anterior","Total orçamento","Total do período atual","Total do período como % de vendas","Variação percentual total do período anterior","Variação percentual total do orçamento"]
[null,null,"Receita total de vendas [J]",{"$f":"SUMIFS(ReceitaDeVendas[Anterior anterior],ReceitaDeVendas[Tipo de receita],\"Receita de vendas\")","v":{"v":100,"d":"R$ 100.00"}},{"$f":"SUMIFS(ReceitaDeVendas[Orçamento],ReceitaDeVendas[Tipo de receita],\"Receita de vendas\")","v":{"v":101,"d":"R$ 101.00"}},{"$f":"SUMIFS(ReceitaDeVendas[Atual anterior],ReceitaDeVendas[Tipo de receita],\"Receita de vendas\")","v":{"v":100,"d":"R$ 100.00"}},{"$f":"SUMIFS(ReceitaDeVendas[Período atual como % das vendas],ReceitaDeVendas[Tipo de receita],\"Receita de vendas\")","v":{"v":1,"d":"100.00%"}},{"$f":"SUMIFS(ReceitaDeVendas[Variação % em relação ao período anterior],ReceitaDeVendas[Tipo de receita],\"Receita de vendas\")","v":{"v":-1.1102230246251565E-16,"d":"-0.00%"}},{"$f":"SUMIFS(ReceitaDeVendas[% da Alteração do orçamento],ReceitaDeVendas[Tipo de receita],\"Receita de vendas\")","v":{"v":3.95,"d":"395.00%"}}]
[null,null,"Custo total de vendas [K]",{"$f":"SUMIFS(ReceitaDeVendas[Anterior anterior],ReceitaDeVendas[Tipo de receita],\"Custo de vendas\")","v":{"v":-25,"d":"-R$ 25.00"}},{"$f":"SUMIFS(ReceitaDeVendas[Orçamento],ReceitaDeVendas[Tipo de receita],\"Custo de vendas\")","v":{"v":-50,"d":"-R$ 50.00"}},{"$f":"SUMIFS(ReceitaDeVendas[Atual anterior],ReceitaDeVendas[Tipo de receita],\"Custo de vendas\")","v":{"v":-55,"d":"-R$ 55.00"}},{"$f":"SUMIFS(ReceitaDeVendas[Período atual como % das vendas],ReceitaDeVendas[Tipo de receita],\"Custo de vendas\")","v":{"v":-0.55,"d":"-55.00%"}},{"$f":"SUMIFS(ReceitaDeVendas[Variação % em relação ao período anterior],ReceitaDeVendas[Tipo de receita],\"Custo de vendas\")","v":{"v":-1.2000000000000002,"d":"-120.00%"}},{"$f":"SUMIFS(ReceitaDeVendas[% da Alteração do orçamento],ReceitaDeVendas[Tipo de receita],\"Custo de vendas\")","v":{"v":-0.10000000000000009,"d":"-10.00%"}}]
[null,null,"Total de despesas com vendas e marketing [M]",{"$f":"SUMIFS(DespesasOperacionais[Anterior anterior],DespesasOperacionais[Tipo de despesa],\"Vendas e marketing\")","v":{"v":30,"d":"R$ 30.00"}},{"$f":"SUMIFS(DespesasOperacionais[Orçamento],DespesasOperacionais[Tipo de despesa],\"Vendas e marketing\")","v":{"v":35,"d":"R$ 35.00"}},{"$f":"SUMIFS(DespesasOperacionais[Atual anterior],DespesasOperacionais[Tipo de despesa],\"Vendas e marketing\")","v":{"v":45,"d":"R$ 45.00"}},{"$f":"SUMIFS(DespesasOperacionais[Período atual como % das vendas],DespesasOperacionais[Tipo de despesa],\"Vendas e marketing\")","v":{"v":0.45,"d":"45.00%"}},{"$f":"SUMIFS(DespesasOperacionais[Variação % em relação ao período anterior],DespesasOperacionais[Tipo de despesa],\"Vendas e marketing\")","v":{"v":0.5,"d":"50.00%"}},{"$f":"SUMIFS(DespesasOperacionais[% da Alteração do orçamento],DespesasOperacionais[Tipo de despesa],\"Vendas e marketing\")","v":{"v":0.2857142857142858,"d":"28.57%"}}]
[null,null,"Total de despesas com pesquisa e desenvolvimento  [N]",{"$f":"SUMIFS(DespesasOperacionais[Anterior anterior],DespesasOperacionais[Tipo de despesa],\"Pesquisa e desenvolvimento\")","v":{"v":0,"d":"R$ 0.00"}},{"$f":"SUMIFS(DespesasOperacionais[Orçamento],DespesasOperacionais[Tipo de despesa],\"Pesquisa e desenvolvimento\")","v":{"v":0,"d":"R$ 0.00"}},{"$f":"SUMIFS(DespesasOperacionais[Atual anterior],DespesasOperacionais[Tipo de despesa],\"Pesquisa e desenvolvimento\")","v":{"v":0,"d":"R$ 0.00"}},{"$f":"SUMIFS(DespesasOperacionais[Período atual como % das vendas],DespesasOperacionais[Tipo de despesa],\"Pesquisa e desenvolvimento\")","v":{"v":0,"d":"0.00%"}},{"$f":"SUMIFS(DespesasOperacionais[Variação % em relação ao período anterior],DespesasOperacionais[Tipo de despesa],\"Pesquisa e desenvolvimento\")","v":{"v":0,"d":"0.00%"}},{"$f":"SUMIFS(DespesasOperacionais[% da Alteração do orçamento],DespesasOperacionais[Tipo de despesa],\"Pesquisa e desenvolvimento\")","v":{"v":0,"d":"0.00%"}}]
[null,null,"Total de despesas gerais e administrativas [O]",{"$f":"SUMIFS(DespesasOperacionais[Anterior anterior],DespesasOperacionais[Tipo de despesa],\"Geral e administrativo\")","v":{"v":0,"d":"R$ 0.00"}},{"$f":"SUMIFS(DespesasOperacionais[Orçamento],DespesasOperacionais[Tipo de despesa],\"Geral e administrativo\")","v":{"v":0,"d":"R$ 0.00"}},{"$f":"SUMIFS(DespesasOperacionais[Atual anterior],DespesasOperacionais[Tipo de despesa],\"Geral e administrativo\")","v":{"v":0,"d":"R$ 0.00"}},{"$f":"SUMIFS(DespesasOperacionais[Período atual como % das vendas],DespesasOperacionais[Tipo de despesa],\"Geral e administrativo\")","v":{"v":0,"d":"0.00%"}},{"$f":"SUMIFS(DespesasOperacionais[Variação % em relação ao período anterior],DespesasOperacionais[Tipo de despesa],\"Geral e administrativo\")","v":{"v":0,"d":"0.00%"}},{"$f":"SUMIFS(DespesasOperacionais[% da Alteração do orçamento],DespesasOperacionais[Tipo de despesa],\"Geral e administrativo\")","v":{"v":0,"d":"0.00%"}}]
[null,null,"Total de outras despesas operacionais [P]",{"$f":"DespesasOperacionais[[#Totals],[Anterior anterior]]-SUM(D11:D13)","v":{"v":0,"d":"R$ 0.00"}},{"$f":"DespesasOperacionais[[#Totals],[Orçamento]]-SUM(E11:E13)","v":{"v":0,"d":"R$ 0.00"}},{"$f":"DespesasOperacionais[[#Totals],[Atual anterior]]-SUM(F11:F13)","v":{"v":0,"d":"R$ 0.00"}},{"$f":"DespesasOperacionais[[#Totals],[Período atual como % das vendas]]-SUM(G11:G13)","v":{"v":0,"d":"0.00%"}},{"$f":"DespesasOperacionais[[#Totals],[Variação % em relação ao período anterior]]-SUM(H11:H13)","v":{"v":0,"d":"0.00%"}},{"$f":"DespesasOperacionais[[#Totals],[% da Alteração do orçamento]]-SUM(I11:I13)","v":{"v":0,"d":"0.00%"}}]
[null,null,"Outras receitas  [S]",{"$f":"Renda[[#Totals],[Anterior anterior]]","v":{"v":50,"d":"R$ 50.00"}},{"$f":"Renda[[#Totals],[Orçamento]]","v":{"v":60,"d":"R$ 60.00"}},{"$f":"Renda[[#Totals],[Atual anterior]]","v":{"v":62,"d":"R$ 62.00"}},{"$f":"Renda[[#Totals],[Período atual como % das vendas]]","v":{"v":0.62,"d":"62.00%"}},{"$f":"Renda[[#Totals],[Variação % em relação ao período anterior]]","v":{"v":0.24,"d":"24.00%"}},{"$f":"Renda[[#Totals],[% da Alteração do orçamento]]","v":{"v":0.03333333333333344,"d":"3.33%"}}]
[null,null,"Total de impostos [T]",{"$f":"Impostos[[#Totals],[Anterior anterior]]","v":{"v":10,"d":"R$ 10.00"}},{"$f":"Impostos[[#Totals],[Orçamento]]","v":{"v":12,"d":"R$ 12.00"}},{"$f":"Impostos[[#Totals],[Atual anterior]]","v":{"v":12,"d":"R$ 12.00"}},{"$f":"Impostos[[#Totals],[Período atual como % das vendas]]","v":{"v":0.12,"d":"12.00%"}},{"$f":"Impostos[[#Totals],[Variação de % em relação ao período anterior]]","v":{"v":0.19999999999999996,"d":"20.00%"}},{"$f":"Impostos[[#Totals],[% da Alteração do orçamento]]","v":{"v":0,"d":"0.00%"}}]
[]
[null,null,"Resumo","Total do período anterior","Total orçamento","Total do período atual","Total do período como % de vendas","Variação percentual total do período anterior","Variação percentual total do orçamento"]
[null,null,"Lucro bruto [L=J-K]",{"$f":"IFERROR(D9-D10,\"-\")","v":{"v":125,"d":"R$ 125.00"}},{"$f":"IFERROR(E9-E10,\"-\")","v":{"v":151,"d":"R$ 151.00"}},{"$f":"IFERROR(Total_da_receita_de_vendas-Total_do_custo_de_vendas,\"-\")","v":{"v":155,"d":"R$ 155.00"}},{"$f":"IFERROR(IF(Total_da_receita_de_vendas=0,\"0.00%\",Total_do_lucro_bruto/Total_da_receita_de_vendas),\"-\")","v":{"v":1.55,"d":"155.00%"}},{"$f":"IFERROR(IF(D19=Total_do_lucro_bruto,0,IF(Total_do_lucro_bruto>D19,ABS((Total_do_lucro_bruto/D19)-1),IF(AND(Total_do_lucro_bruto<D19,D19<0),-((Total_do_lucro_bruto/D19)-1),(Total_do_lucro_bruto/D19)-1))),\"-\")","v":{"v":0.24,"d":"24.00%"}},{"$f":"IFERROR(IF(E19=Total_do_lucro_bruto,0,IF(Total_do_lucro_bruto>E19,ABS((Total_do_lucro_bruto/E19)-1),IF(AND(Total_do_lucro_bruto<E19,E19<0),-((Total_do_lucro_bruto/E19)-1),(Total_do_lucro_bruto/E19)-1))),\"-\")","v":{"v":0.026490066225165476,"d":"2.65%"}}]
[null,null,"Total de despesas operacionais [Q=M+N+O+P]",{"$f":"IFERROR(D11+D12+D13+D14,\"-\")","v":{"v":30,"d":"R$ 30.00"}},{"$f":"IFERROR(E11+E12+E13+E14,\"-\")","v":{"v":35,"d":"R$ 35.00"}},{"$f":"IFERROR(Total_de_vendas_e_marketing+Total_de_pesquisa_e_desenvolvimento+Total_geral_e_administrativo+Total_de_outras_despesas,\"-\")","v":{"v":45,"d":"R$ 45.00"}},{"$f":"IFERROR(IF(Total_da_receita_de_vendas=0,\"0.00%\",Total_de_despesas_operacionais/Total_da_receita_de_vendas),\"-\")","v":{"v":0.45,"d":"45.00%"}},{"$f":"IFERROR(IF(D20=Total_de_despesas_operacionais,0,IF(Total_de_despesas_operacionais>D20,ABS((Total_de_despesas_operacionais/D20)-1),IF(AND(Total_de_despesas_operacionais<D20,D20<0),-((Total_de_despesas_operacionais/D20)-1),(Total_de_despesas_operacionais/D20)-1))),\"-\")","v":{"v":0.5,"d":"50.00%"}},{"$f":"IFERROR(IF(E20=Total_de_despesas_operacionais,0,IF(Total_de_despesas_operacionais>E20,ABS((Total_de_despesas_operacionais/E20)-1),IF(AND(Total_de_despesas_operacionais<E20,E20<0),-((Total_de_despesas_operacionais/E20)-1),(Total_de_despesas_operacionais/E20)-1))),\"-\")","v":{"v":0.2857142857142858,"d":"28.57%"}}]
[null,null,"Receita de operações [R=L-Q]",{"$f":"IFERROR(D19-D20,\"-\")","v":{"v":95,"d":"R$ 95.00"}},{"$f":"IFERROR(E19-E20,\"-\")","v":{"v":116,"d":"R$ 116.00"}},{"$f":"IFERROR(Total_do_lucro_bruto-Total_de_despesas_operacionais,\"-\")","v":{"v":110,"d":"R$ 110.00"}},{"$f":"IFERROR(IF(Total_da_receita_de_vendas=0,\"0.00%\",Total_do_resultado_operacional/Total_da_receita_de_vendas),\"-\")","v":{"v":1.1,"d":"110.00%"}},{"$f":"IFERROR(IF(D21=Total_do_resultado_operacional,0,IF(Total_do_resultado_operacional>D21,ABS((Total_do_resultado_operacional/D21)-1),IF(AND(Total_do_resultado_operacional<D21,D21<0),-((Total_do_resultado_operacional/D21)-1),(Total_do_resultado_operacional/D21)-1))),\"-\")","v":{"v":0.1578947368421053,"d":"15.79%"}},{"$f":"IFERROR(IF(E21=Total_do_resultado_operacional,0,IF(Total_do_resultado_operacional>E21,ABS((Total_do_resultado_operacional/E21)-1),IF(AND(Total_do_resultado_operacional<E21,E21<0),-((Total_do_resultado_operacional/E21)-1),(Total_do_resultado_operacional/E21)-1))),\"-\")","v":{"v":-0.051724137931034475,"d":"-5.17%"}}]
[null,null,"Lucro líquido [U=R+S-T]",{"$f":"IFERROR(D21+D15-D16,\"-\")","v":{"v":135,"d":"R$ 135.00"}},{"$f":"IFERROR(E21+E15-E16,\"-\")","v":{"v":164,"d":"R$ 164.00"}},{"$f":"Total_do_resultado_operacional+Total_de_outros_rendimentos-Total_de_impostos","v":{"v":160,"d":"R$ 160.00"}},{"$f":"IFERROR(IF(Total_da_receita_de_vendas=0,\"0.00%\",Lucro_Líquido/Total_da_receita_de_vendas),\"-\")","v":{"v":1.6,"d":"160.00%"}},{"$f":"IFERROR(IF(D22=Lucro_Líquido,0,IF(Lucro_Líquido>D22,ABS((Lucro_Líquido/D22)-1),IF(AND(Lucro_Líquido<D22,D22<0),-((Lucro_Líquido/D22)-1),(Lucro_Líquido/D22)-1))),\"-\")","v":{"v":0.18518518518518512,"d":"18.52%"}},{"$f":"IFERROR(IF(E22=Lucro_Líquido,0,IF(Lucro_Líquido>E22,ABS((Lucro_Líquido/E22)-1),IF(AND(Lucro_Líquido<E22,E22<0),-((Lucro_Líquido/E22)-1),(Lucro_Líquido/E22)-1))),\"-\")","v":{"v":-0.024390243902439046,"d":"-2.44%"}}]

{"sheet":"Vendas","index":1,"n_rows":15,"n_cols":10,"rows_kept":15}
[]
[]
[null,null,{"$f":"Título_Da_Pasta_De_Trabalho","v":"DEMONSTRAÇÃO DE LUCROS E PERDAS"},{"$nulls":5},"Receita de vendas"]
[null,null,{"$f":"Nome_Empresa","v":"CELULAR SATCOM"},{"$nulls":5},"Declarado em milhares",{"$f":"IFERROR(Receita_de_vendas,\"-\")","v":{"v":100,"d":"R$ 100.00"}}]
[]
[null,null,"Tipo de receita","Descrição","Anterior anterior","Orçamento","Atual anterior","Período atual como % das vendas","Variação % em relação ao período anterior","% da Alteração do orçamento"]
[null,null,"Receita de vendas","Produto/serviço 1",{"v":50,"d":"R$ 50.00"},{"v":1,"d":"R$ 1.00"},{"v":5,"d":"R$ 5.00"},{"$f":"IFERROR(IF(ReceitaDeVendas[[#Totals],[Atual anterior]]=0,\"-\",ReceitaDeVendas[[#This Row],[Atual anterior]]/Receita_de_vendas),\"-\")","v":{"v":0.05,"d":"5.00%"}},{"$f":"IFERROR(IF(ReceitaDeVendas[[#This Row],[Anterior anterior]]=ReceitaDeVendas[[#This Row],[Atual anterior]],0,IF(ReceitaDeVendas[[#This Row],[Atual anterior]]>ReceitaDeVendas[[#This Row],[Anterior anterior]],ABS((ReceitaDeVendas[[#This Row],[Atual anterior]]/ReceitaDeVendas[[#This Row],[Anterior anterior]])-1),IF(AND(ReceitaDeVendas[[#This Row],[Atual anterior]]<ReceitaDeVendas[[#This Row],[Anterior anterior]],ReceitaDeVendas[[#This Row],[Anterior anterior]]<0),-((ReceitaDeVendas[[#This Row],[Atual anterior]]/ReceitaDeVendas[[#This Row],[Anterior anterior]])-1),(ReceitaDeVendas[[#This Row],[Atual anterior]]/ReceitaDeVendas[[#This Row],[Anterior anterior]])-1))),\"-\")","v":{"v":-0.9,"d":"-90.00%"}},{"$f":"IFERROR(IF(ReceitaDeVendas[[#This Row],[Orçamento]]=ReceitaDeVendas[[#This Row],[Atual anterior]],0,IF(ReceitaDeVendas[[#This Row],[Atual anterior]]>ReceitaDeVendas[[#This Row],[Orçamento]],ABS((ReceitaDeVendas[[#This Row],[Atual anterior]]/ReceitaDeVendas[[#This Row],[Orçamento]])-1),IF(AND(ReceitaDeVendas[[#This Row],[Atual anterior]]<ReceitaDeVendas[[#This Row],[Orçamento]],ReceitaDeVendas[[#This Row],[Orçamento]]<0),-((ReceitaDeVendas[[#This Row],[Atual anterior]]/ReceitaDeVendas[[#This Row],[Orçamento]])-1),(ReceitaDeVendas[[#This Row],[Atual anterior]]/ReceitaDeVendas[[#This Row],[Orçamento]])-1))),\"-\")","v":{"v":4,"d":"400.00%"}}]
[null,null,"Receita de vendas","Produto/serviço 2",{"v":50,"d":"R$ 50.00"},{"v":100,"d":"R$ 100.00"},{"v":95,"d":"R$ 95.00"},{"$f":"IFERROR(IF(ReceitaDeVendas[[#Totals],[Atual anterior]]=0,\"-\",ReceitaDeVendas[[#This Row],[Atual anterior]]/Receita_de_vendas),\"-\")","v":{"v":0.95,"d":"95.00%"}},{"$f":"IFERROR(IF(ReceitaDeVendas[[#This Row],[Anterior anterior]]=ReceitaDeVendas[[#This Row],[Atual anterior]],0,IF(ReceitaDeVendas[[#This Row],[Atual anterior]]>ReceitaDeVendas[[#This Row],[Anterior anterior]],ABS((ReceitaDeVendas[[#This Row],[Atual anterior]]/ReceitaDeVendas[[#This Row],[Anterior anterior]])-1),IF(AND(ReceitaDeVendas[[#This Row],[Atual anterior]]<ReceitaDeVendas[[#This Row],[Anterior anterior]],ReceitaDeVendas[[#This Row],[Anterior anterior]]<0),-((ReceitaDeVendas[[#This Row],[Atual anterior]]/ReceitaDeVendas[[#This Row],[Anterior anterior]])-1),(ReceitaDeVendas[[#This Row],[Atual anterior]]/ReceitaDeVendas[[#This Row],[Anterior anterior]])-1))),\"-\")","v":{"v":0.8999999999999999,"d":"90.00%"}},{"$f":"IFERROR(IF(ReceitaDeVendas[[#This Row],[Orçamento]]=ReceitaDeVendas[[#This Row],[Atual anterior]],0,IF(ReceitaDeVendas[[#This Row],[Atual anterior]]>ReceitaDeVendas[[#This Row],[Orçamento]],ABS((ReceitaDeVendas[[#This Row],[Atual anterior]]/ReceitaDeVendas[[#This Row],[Orçamento]])-1),IF(AND(ReceitaDeVendas[[#This Row],[Atual anterior]]<ReceitaDeVendas[[#This Row],[Orçamento]],ReceitaDeVendas[[#This Row],[Orçamento]]<0),-((ReceitaDeVendas[[#This Row],[Atual anterior]]/ReceitaDeVendas[[#This Row],[Orçamento]])-1),(ReceitaDeVendas[[#This Row],[Atual anterior]]/ReceitaDeVendas[[#This Row],[Orçamento]])-1))),\"-\")","v":{"v":-0.050000000000000044,"d":"-5.00%"}}]
[null,null,"Receita de vendas","Produto/serviço 3",{"$nulls":3},{"$f":"IFERROR(IF(ReceitaDeVendas[[#Totals],[Atual anterior]]=0,\"-\",ReceitaDeVendas[[#This Row],[Atual anterior]]/Receita_de_vendas),\"-\")","v":{"v":0,"d":"0.00%"}},{"$f":"IFERROR(IF(ReceitaDeVendas[[#This Row],[Anterior anterior]]=ReceitaDeVendas[[#This Row],[Atual anterior]],0,IF(ReceitaDeVendas[[#This Row],[Atual anterior]]>ReceitaDeVendas[[#This Row],[Anterior anterior]],ABS((ReceitaDeVendas[[#This Row],[Atual anterior]]/ReceitaDeVendas[[#This Row],[Anterior anterior]])-1),IF(AND(ReceitaDeVendas[[#This Row],[Atual anterior]]<ReceitaDeVendas[[#This Row],[Anterior anterior]],ReceitaDeVendas[[#This Row],[Anterior anterior]]<0),-((ReceitaDeVendas[[#This Row],[Atual anterior]]/ReceitaDeVendas[[#This Row],[Anterior anterior]])-1),(ReceitaDeVendas[[#This Row],[Atual anterior]]/ReceitaDeVendas[[#This Row],[Anterior anterior]])-1))),\"-\")","v":{"v":0,"d":"0.00%"}},{"$f":"IFERROR(IF(ReceitaDeVendas[[#This Row],[Orçamento]]=ReceitaDeVendas[[#This Row],[Atual anterior]],0,IF(ReceitaDeVendas[[#This Row],[Atual anterior]]>ReceitaDeVendas[[#This Row],[Orçamento]],ABS((ReceitaDeVendas[[#This Row],[Atual anterior]]/ReceitaDeVendas[[#This Row],[Orçamento]])-1),IF(AND(ReceitaDeVendas[[#This Row],[Atual anterior]]<ReceitaDeVendas[[#This Row],[Orçamento]],ReceitaDeVendas[[#This Row],[Orçamento]]<0),-((ReceitaDeVendas[[#This Row],[Atual anterior]]/ReceitaDeVendas[[#This Row],[Orçamento]])-1),(ReceitaDeVendas[[#This Row],[Atual anterior]]/ReceitaDeVendas[[#This Row],[Orçamento]])-1))),\"-\")","v":{"v":0,"d":"0.00%"}}]
[null,null,"Receita de vendas","Produto/serviço 4",{"$nulls":3},{"$f":"IFERROR(IF(ReceitaDeVendas[[#Totals],[Atual anterior]]=0,\"-\",ReceitaDeVendas[[#This Row],[Atual anterior]]/Receita_de_vendas),\"-\")","v":{"v":0,"d":"0.00%"}},{"$f":"IFERROR(IF(ReceitaDeVendas[[#This Row],[Anterior anterior]]=ReceitaDeVendas[[#This Row],[Atual anterior]],0,IF(ReceitaDeVendas[[#This Row],[Atual anterior]]>ReceitaDeVendas[[#This Row],[Anterior anterior]],ABS((ReceitaDeVendas[[#This Row],[Atual anterior]]/ReceitaDeVendas[[#This Row],[Anterior anterior]])-1),IF(AND(ReceitaDeVendas[[#This Row],[Atual anterior]]<ReceitaDeVendas[[#This Row],[Anterior anterior]],ReceitaDeVendas[[#This Row],[Anterior anterior]]<0),-((ReceitaDeVendas[[#This Row],[Atual anterior]]/ReceitaDeVendas[[#This Row],[Anterior anterior]])-1),(ReceitaDeVendas[[#This Row],[Atual anterior]]/ReceitaDeVendas[[#This Row],[Anterior anterior]])-1))),\"-\")","v":{"v":0,"d":"0.00%"}},{"$f":"IFERROR(IF(ReceitaDeVendas[[#This Row],[Orçamento]]=ReceitaDeVendas[[#This Row],[Atual anterior]],0,IF(ReceitaDeVendas[[#This Row],[Atual anterior]]>ReceitaDeVendas[[#This Row],[Orçamento]],ABS((ReceitaDeVendas[[#This Row],[Atual anterior]]/ReceitaDeVendas[[#This Row],[Orçamento]])-1),IF(AND(ReceitaDeVendas[[#This Row],[Atual anterior]]<ReceitaDeVendas[[#This Row],[Orçamento]],ReceitaDeVendas[[#This Row],[Orçamento]]<0),-((ReceitaDeVendas[[#This Row],[Atual anterior]]/ReceitaDeVendas[[#This Row],[Orçamento]])-1),(ReceitaDeVendas[[#This Row],[Atual anterior]]/ReceitaDeVendas[[#This Row],[Orçamento]])-1))),\"-\")","v":{"v":0,"d":"0.00%"}}]
[null,null,"Custo de vendas","Produto/serviço 1",{"v":-25,"d":"-R$ 25.00"},{"v":-50,"d":"-R$ 50.00"},{"v":-55,"d":"-R$ 55.00"},{"$f":"IFERROR(IF(ReceitaDeVendas[[#Totals],[Atual anterior]]=0,\"-\",ReceitaDeVendas[[#This Row],[Atual anterior]]/Receita_de_vendas),\"-\")","v":{"v":-0.55,"d":"-55.00%"}},{"$f":"IFERROR(IF(ReceitaDeVendas[[#This Row],[Anterior anterior]]=ReceitaDeVendas[[#This Row],[Atual anterior]],0,IF(ReceitaDeVendas[[#This Row],[Atual anterior]]>ReceitaDeVendas[[#This Row],[Anterior anterior]],ABS((ReceitaDeVendas[[#This Row],[Atual anterior]]/ReceitaDeVendas[[#This Row],[Anterior anterior]])-1),IF(AND(ReceitaDeVendas[[#This Row],[Atual anterior]]<ReceitaDeVendas[[#This Row],[Anterior anterior]],ReceitaDeVendas[[#This Row],[Anterior anterior]]<0),-((ReceitaDeVendas[[#This Row],[Atual anterior]]/ReceitaDeVendas[[#This Row],[Anterior anterior]])-1),(ReceitaDeVendas[[#This Row],[Atual anterior]]/ReceitaDeVendas[[#This Row],[Anterior anterior]])-1))),\"-\")","v":{"v":-1.2000000000000002,"d":"-120.00%"}},{"$f":"IFERROR(IF(ReceitaDeVendas[[#This Row],[Orçamento]]=ReceitaDeVendas[[#This Row],[Atual anterior]],0,IF(ReceitaDeVendas[[#This Row],[Atual anterior]]>ReceitaDeVendas[[#This Row],[Orçamento]],ABS((ReceitaDeVendas[[#This Row],[Atual anterior]]/ReceitaDeVendas[[#This Row],[Orçamento]])-1),IF(AND(ReceitaDeVendas[[#This Row],[Atual anterior]]<ReceitaDeVendas[[#This Row],[Orçamento]],ReceitaDeVendas[[#This Row],[Orçamento]]<0),-((ReceitaDeVendas[[#This Row],[Atual anterior]]/ReceitaDeVendas[[#This Row],[Orçamento]])-1),(ReceitaDeVendas[[#This Row],[Atual anterior]]/ReceitaDeVendas[[#This Row],[Orçamento]])-1))),\"-\")","v":{"v":-0.10000000000000009,"d":"-10.00%"}}]
[null,null,"Custo de vendas","Produto/serviço 2",{"$nulls":3},{"$f":"IFERROR(IF(ReceitaDeVendas[[#Totals],[Atual anterior]]=0,\"-\",ReceitaDeVendas[[#This Row],[Atual anterior]]/Receita_de_vendas),\"-\")","v":{"v":0,"d":"0.00%"}},{"$f":"IFERROR(IF(ReceitaDeVendas[[#This Row],[Anterior anterior]]=ReceitaDeVendas[[#This Row],[Atual anterior]],0,IF(ReceitaDeVendas[[#This Row],[Atual anterior]]>ReceitaDeVendas[[#This Row],[Anterior anterior]],ABS((ReceitaDeVendas[[#This Row],[Atual anterior]]/ReceitaDeVendas[[#This Row],[Anterior anterior]])-1),IF(AND(ReceitaDeVendas[[#This Row],[Atual anterior]]<ReceitaDeVendas[[#This Row],[Anterior anterior]],ReceitaDeVendas[[#This Row],[Anterior anterior]]<0),-((ReceitaDeVendas[[#This Row],[Atual anterior]]/ReceitaDeVendas[[#This Row],[Anterior anterior]])-1),(ReceitaDeVendas[[#This Row],[Atual anterior]]/ReceitaDeVendas[[#This Row],[Anterior anterior]])-1))),\"-\")","v":{"v":0,"d":"0.00%"}},{"$f":"IFERROR(IF(ReceitaDeVendas[[#This Row],[Orçamento]]=ReceitaDeVendas[[#This Row],[Atual anterior]],0,IF(ReceitaDeVendas[[#This Row],[Atual anterior]]>ReceitaDeVendas[[#This Row],[Orçamento]],ABS((ReceitaDeVendas[[#This Row],[Atual anterior]]/ReceitaDeVendas[[#This Row],[Orçamento]])-1),IF(AND(ReceitaDeVendas[[#This Row],[Atual anterior]]<ReceitaDeVendas[[#This Row],[Orçamento]],ReceitaDeVendas[[#This Row],[Orçamento]]<0),-((ReceitaDeVendas[[#This Row],[Atual anterior]]/ReceitaDeVendas[[#This Row],[Orçamento]])-1),(ReceitaDeVendas[[#This Row],[Atual anterior]]/ReceitaDeVendas[[#This Row],[Orçamento]])-1))),\"-\")","v":{"v":0,"d":"0.00%"}}]
[null,null,"Custo de vendas","Produto/serviço 3",{"$nulls":3},{"$f":"IFERROR(IF(ReceitaDeVendas[[#Totals],[Atual anterior]]=0,\"-\",ReceitaDeVendas[[#This Row],[Atual anterior]]/Receita_de_vendas),\"-\")","v":{"v":0,"d":"0.00%"}},{"$f":"IFERROR(IF(ReceitaDeVendas[[#This Row],[Anterior anterior]]=ReceitaDeVendas[[#This Row],[Atual anterior]],0,IF(ReceitaDeVendas[[#This Row],[Atual anterior]]>ReceitaDeVendas[[#This Row],[Anterior anterior]],ABS((ReceitaDeVendas[[#This Row],[Atual anterior]]/ReceitaDeVendas[[#This Row],[Anterior anterior]])-1),IF(AND(ReceitaDeVendas[[#This Row],[Atual anterior]]<ReceitaDeVendas[[#This Row],[Anterior anterior]],ReceitaDeVendas[[#This Row],[Anterior anterior]]<0),-((ReceitaDeVendas[[#This Row],[Atual anterior]]/ReceitaDeVendas[[#This Row],[Anterior anterior]])-1),(ReceitaDeVendas[[#This Row],[Atual anterior]]/ReceitaDeVendas[[#This Row],[Anterior anterior]])-1))),\"-\")","v":{"v":0,"d":"0.00%"}},{"$f":"IFERROR(IF(ReceitaDeVendas[[#This Row],[Orçamento]]=ReceitaDeVendas[[#This Row],[Atual anterior]],0,IF(ReceitaDeVendas[[#This Row],[Atual anterior]]>ReceitaDeVendas[[#This Row],[Orçamento]],ABS((ReceitaDeVendas[[#This Row],[Atual anterior]]/ReceitaDeVendas[[#This Row],[Orçamento]])-1),IF(AND(ReceitaDeVendas[[#This Row],[Atual anterior]]<ReceitaDeVendas[[#This Row],[Orçamento]],ReceitaDeVendas[[#This Row],[Orçamento]]<0),-((ReceitaDeVendas[[#This Row],[Atual anterior]]/ReceitaDeVendas[[#This Row],[Orçamento]])-1),(ReceitaDeVendas[[#This Row],[Atual anterior]]/ReceitaDeVendas[[#This Row],[Orçamento]])-1))),\"-\")","v":{"v":0,"d":"0.00%"}}]
[null,null,"Custo de vendas","Produto/serviço 4",{"$nulls":3},{"$f":"IFERROR(IF(ReceitaDeVendas[[#Totals],[Atual anterior]]=0,\"-\",ReceitaDeVendas[[#This Row],[Atual anterior]]/Receita_de_vendas),\"-\")","v":{"v":0,"d":"0.00%"}},{"$f":"IFERROR(IF(ReceitaDeVendas[[#This Row],[Anterior anterior]]=ReceitaDeVendas[[#This Row],[Atual anterior]],0,IF(ReceitaDeVendas[[#This Row],[Atual anterior]]>ReceitaDeVendas[[#This Row],[Anterior anterior]],ABS((ReceitaDeVendas[[#This Row],[Atual anterior]]/ReceitaDeVendas[[#This Row],[Anterior anterior]])-1),IF(AND(ReceitaDeVendas[[#This Row],[Atual anterior]]<ReceitaDeVendas[[#This Row],[Anterior anterior]],ReceitaDeVendas[[#This Row],[Anterior anterior]]<0),-((ReceitaDeVendas[[#This Row],[Atual anterior]]/ReceitaDeVendas[[#This Row],[Anterior anterior]])-1),(ReceitaDeVendas[[#This Row],[Atual anterior]]/ReceitaDeVendas[[#This Row],[Anterior anterior]])-1))),\"-\")","v":{"v":0,"d":"0.00%"}},{"$f":"IFERROR(IF(ReceitaDeVendas[[#This Row],[Orçamento]]=ReceitaDeVendas[[#This Row],[Atual anterior]],0,IF(ReceitaDeVendas[[#This Row],[Atual anterior]]>ReceitaDeVendas[[#This Row],[Orçamento]],ABS((ReceitaDeVendas[[#This Row],[Atual anterior]]/ReceitaDeVendas[[#This Row],[Orçamento]])-1),IF(AND(ReceitaDeVendas[[#This Row],[Atual anterior]]<ReceitaDeVendas[[#This Row],[Orçamento]],ReceitaDeVendas[[#This Row],[Orçamento]]<0),-((ReceitaDeVendas[[#This Row],[Atual anterior]]/ReceitaDeVendas[[#This Row],[Orçamento]])-1),(ReceitaDeVendas[[#This Row],[Atual anterior]]/ReceitaDeVendas[[#This Row],[Orçamento]])-1))),\"-\")","v":{"v":0,"d":"0.00%"}}]
[null,null,"Receita total de vendas",null,{"$f":"SUBTOTAL(109,ReceitaDeVendas[Anterior anterior])","v":{"v":75,"d":"R$ 75.00"}},{"$f":"SUBTOTAL(109,ReceitaDeVendas[Orçamento])","v":{"v":51,"d":"R$ 51.00"}},{"$f":"SUBTOTAL(109,ReceitaDeVendas[Atual anterior])","v":{"v":45,"d":"R$ 45.00"}},{"$f":"SUBTOTAL(109,ReceitaDeVendas[Período atual como % das vendas])","v":{"v":0.44999999999999996,"d":"45.00%"}},{"$f":"SUBTOTAL(109,ReceitaDeVendas[Variação % em relação ao período anterior])","v":{"v":-1.2000000000000002,"d":"-120.00%"}},{"$f":"SUBTOTAL(109,ReceitaDeVendas[% da Alteração do orçamento])","v":{"v":3.85,"d":"385.00%"}}]

{"sheet":"Rendimento","index":2,"n_rows":9,"n_cols":10,"rows_kept":9}
[]
[]
[null,null,{"$f":"Título_Da_Pasta_De_Trabalho","v":"DEMONSTRAÇÃO DE LUCROS E PERDAS"},{"$nulls":5},"Receita"]
[null,null,{"$f":"Nome_Empresa","v":"CELULAR SATCOM"},{"$nulls":5},"Declarado em milhares",{"$f":"IFERROR(Renda[[#Totals],[Atual anterior]],\"-\")","v":{"v":62,"d":"R$ 62.00"}}]
[]
[null,null,"Tipo de receita","Descrição","Anterior anterior","Orçamento","Atual anterior","Período atual como % das vendas","Variação % em relação ao período anterior","% da Alteração do orçamento"]
[null,null,"Receita","Outras receitas",{"v":50,"d":"R$ 50.00"},{"v":60,"d":"R$ 60.00"},{"v":62,"d":"R$ 62.00"},{"$f":"IFERROR(IF(Receita_de_vendas=0,\"-\",Renda[[#This Row],[Atual anterior]]/Receita_de_vendas),\"-\")","v":{"v":0.62,"d":"62.00%"}},{"$f":"IFERROR(IF(Renda[[#This Row],[Anterior anterior]]=Renda[[#This Row],[Atual anterior]],0,IF(Renda[[#This Row],[Atual anterior]]>Renda[[#This Row],[Anterior anterior]],ABS((Renda[[#This Row],[Atual anterior]]/Renda[[#This Row],[Anterior anterior]])-1),IF(AND(Renda[[#This Row],[Atual anterior]]<Renda[[#This Row],[Anterior anterior]],Renda[[#This Row],[Anterior anterior]]<0),-((Renda[[#This Row],[Atual anterior]]/Renda[[#This Row],[Anterior anterior]])-1),(Renda[[#This Row],[Atual anterior]]/Renda[[#This Row],[Anterior anterior]])-1))),\"-\")","v":{"v":0.24,"d":"24.00%"}},{"$f":"IFERROR(IF(Renda[[#This Row],[Orçamento]]=Renda[[#This Row],[Atual anterior]],0,IF(Renda[[#This Row],[Atual anterior]]>Renda[[#This Row],[Orçamento]],ABS((Renda[[#This Row],[Atual anterior]]/Renda[[#This Row],[Orçamento]])-1),IF(AND(Renda[[#This Row],[Atual anterior]]<Renda[[#This Row],[Orçamento]],Renda[[#This Row],[Orçamento]]<0),-((Renda[[#This Row],[Atual anterior]]/Renda[[#This Row],[Orçamento]])-1),(Renda[[#This Row],[Atual anterior]]/Renda[[#This Row],[Orçamento]])-1))),\"-\")","v":{"v":0.03333333333333344,"d":"3.33%"}}]
[{"$nulls":7},{"$f":"IFERROR(IF(Receita_de_vendas=0,\"-\",Renda[[#This Row],[Atual anterior]]/Receita_de_vendas),\"-\")","v":{"v":0,"d":"0.00%"}},{"$f":"IFERROR(IF(Renda[[#This Row],[Anterior anterior]]=Renda[[#This Row],[Atual anterior]],0,IF(Renda[[#This Row],[Atual anterior]]>Renda[[#This Row],[Anterior anterior]],ABS((Renda[[#This Row],[Atual anterior]]/Renda[[#This Row],[Anterior anterior]])-1),IF(AND(Renda[[#This Row],[Atual anterior]]<Renda[[#This Row],[Anterior anterior]],Renda[[#This Row],[Anterior anterior]]<0),-((Renda[[#This Row],[Atual anterior]]/Renda[[#This Row],[Anterior anterior]])-1),(Renda[[#This Row],[Atual anterior]]/Renda[[#This Row],[Anterior anterior]])-1))),\"-\")","v":{"v":0,"d":"0.00%"}},{"$f":"IFERROR(IF(Renda[[#This Row],[Orçamento]]=Renda[[#This Row],[Atual anterior]],0,IF(Renda[[#This Row],[Atual anterior]]>Renda[[#This Row],[Orçamento]],ABS((Renda[[#This Row],[Atual anterior]]/Renda[[#This Row],[Orçamento]])-1),IF(AND(Renda[[#This Row],[Atual anterior]]<Renda[[#This Row],[Orçamento]],Renda[[#This Row],[Orçamento]]<0),-((Renda[[#This Row],[Atual anterior]]/Renda[[#This Row],[Orçamento]])-1),(Renda[[#This Row],[Atual anterior]]/Renda[[#This Row],[Orçamento]])-1))),\"-\")","v":{"v":0,"d":"0.00%"}}]
[null,null,"Receita total de vendas",null,{"$f":"SUBTOTAL(109,Renda[Anterior anterior])","v":{"v":50,"d":"R$ 50.00"}},{"$f":"SUBTOTAL(109,Renda[Orçamento])","v":{"v":60,"d":"R$ 60.00"}},{"$f":"SUBTOTAL(109,Renda[Atual anterior])","v":{"v":62,"d":"R$ 62.00"}},{"$f":"SUBTOTAL(109,Renda[Período atual como % das vendas])","v":{"v":0.62,"d":"62.00%"}},{"$f":"SUBTOTAL(109,Renda[Variação % em relação ao período anterior])","v":{"v":0.24,"d":"24.00%"}},{"$f":"SUBTOTAL(109,Renda[% da Alteração do orçamento])","v":{"v":0.03333333333333344,"d":"3.33%"}}]

{"sheet":"Despesas","index":3,"n_rows":27,"n_cols":10,"rows_kept":27}
[]
[]
[null,null,{"$f":"Título_Da_Pasta_De_Trabalho","v":"DEMONSTRAÇÃO DE LUCROS E PERDAS"},{"$nulls":5},"Despesas operacionais"]
[null,null,{"$f":"Nome_Empresa","v":"CELULAR SATCOM"},{"$nulls":5},"Declarado em milhares",{"$f":"IFERROR(DespesasOperacionais[[#Totals],[Atual anterior]],\"-\")","v":{"v":45,"d":"R$ 45.00"}}]
[]
[null,null,"Tipo de despesa","Descrição","Anterior anterior","Orçamento","Atual anterior","Período atual como % das vendas","Variação % em relação ao período anterior","% da Alteração do orçamento"]
[null,null,"Vendas e marketing","Publicidade",{"v":30,"d":"R$ 30.00"},{"v":35,"d":"R$ 35.00"},{"v":45,"d":"R$ 45.00"},{"$f":"IFERROR(IF(Receita_de_vendas=0,\"-\",DespesasOperacionais[[#This Row],[Atual anterior]]/Receita_de_vendas),\"-\")","v":{"v":0.45,"d":"45.00%"}},{"$f":"IFERROR(IF(DespesasOperacionais[[#This Row],[Anterior anterior]]=DespesasOperacionais[[#This Row],[Atual anterior]],0,IF(DespesasOperacionais[[#This Row],[Atual anterior]]>DespesasOperacionais[[#This Row],[Anterior anterior]],ABS((DespesasOperacionais[[#This Row],[Atual anterior]]/DespesasOperacionais[[#This Row],[Anterior anterior]])-1),IF(AND(DespesasOperacionais[[#This Row],[Atual anterior]]<DespesasOperacionais[[#This Row],[Anterior anterior]],DespesasOperacionais[[#This Row],[Anterior anterior]]<0),-((DespesasOperacionais[[#This Row],[Atual anterior]]/DespesasOperacionais[[#This Row],[Anterior anterior]])-1),(DespesasOperacionais[[#This Row],[Atual anterior]]/DespesasOperacionais[[#This Row],[Anterior anterior]])-1))),\"-\")","v":{"v":0.5,"d":"50.00%"}},{"$f":"IFERROR(IF(DespesasOperacionais[[#This Row],[Orçamento]]=DespesasOperacionais[[#This Row],[Atual anterior]],0,IF(DespesasOperacionais[[#This Row],[Atual anterior]]>DespesasOperacionais[[#This Row],[Orçamento]],ABS((DespesasOperacionais[[#This Row],[Atual anterior]]/DespesasOperacionais[[#This Row],[Orçamento]])-1),IF(AND(DespesasOperacionais[[#This Row],[Atual anterior]]<DespesasOperacionais[[#This Row],[Orçamento]],DespesasOperacionais[[#This Row],[Orçamento]]<0),-((DespesasOperacionais[[#This Row],[Atual anterior]]/DespesasOperacionais[[#This Row],[Orçamento]])-1),(DespesasOperacionais[[#This Row],[Atual anterior]]/DespesasOperacionais[[#This Row],[Orçamento]])-1))),\"-\")","v":{"v":0.2857142857142858,"d":"28.57%"}}]
[null,null,"Vendas e marketing","Marketing direto",{"$nulls":3},{"$f":"IFERROR(IF(Receita_de_vendas=0,\"-\",DespesasOperacionais[[#This Row],[Atual anterior]]/Receita_de_vendas),\"-\")","v":{"v":0,"d":"0.00%"}},{"$f":"IFERROR(IF(DespesasOperacionais[[#This Row],[Anterior anterior]]=DespesasOperacionais[[#This Row],[Atual anterior]],0,IF(DespesasOperacionais[[#This Row],[Atual anterior]]>DespesasOperacionais[[#This Row],[Anterior anterior]],ABS((DespesasOperacionais[[#This Row],[Atual anterior]]/DespesasOperacionais[[#This Row],[Anterior anterior]])-1),IF(AND(DespesasOperacionais[[#This Row],[Atual anterior]]<DespesasOperacionais[[#This Row],[Anterior anterior]],DespesasOperacionais[[#This Row],[Anterior anterior]]<0),-((DespesasOperacionais[[#This Row],[Atual anterior]]/DespesasOperacionais[[#This Row],[Anterior anterior]])-1),(DespesasOperacionais[[#This Row],[Atual anterior]]/DespesasOperacionais[[#This Row],[Anterior anterior]])-1))),\"-\")","v":{"v":0,"d":"0.00%"}},{"$f":"IFERROR(IF(DespesasOperacionais[[#This Row],[Orçamento]]=DespesasOperacionais[[#This Row],[Atual anterior]],0,IF(DespesasOperacionais[[#This Row],[Atual anterior]]>DespesasOperacionais[[#This Row],[Orçamento]],ABS((DespesasOperacionais[[#This Row],[Atual anterior]]/DespesasOperacionais[[#This Row],[Orçamento]])-1),IF(AND(DespesasOperacionais[[#This Row],[Atual anterior]]<DespesasOperacionais[[#This Row],[Orçamento]],DespesasOperacionais[[#This Row],[Orçamento]]<0),-((DespesasOperacionais[[#This Row],[Atual anterior]]/DespesasOperacionais[[#This Row],[Orçamento]])-1),(DespesasOperacionais[[#This Row],[Atual anterior]]/DespesasOperacionais[[#This Row],[Orçamento]])-1))),\"-\")","v":{"v":0,"d":"0.00%"}}]
[null,null,"Vendas e marketing","Outras despesas (especificar)",{"$nulls":3},{"$f":"IFERROR(IF(Receita_de_vendas=0,\"-\",DespesasOperacionais[[#This Row],[Atual anterior]]/Receita_de_vendas),\"-\")","v":{"v":0,"d":"0.00%"}},{"$f":"IFERROR(IF(DespesasOperacionais[[#This Row],[Anterior anterior]]=DespesasOperacionais[[#This Row],[Atual anterior]],0,IF(DespesasOperacionais[[#This Row],[Atual anterior]]>DespesasOperacionais[[#This Row],[Anterior anterior]],ABS((DespesasOperacionais[[#This Row],[Atual anterior]]/DespesasOperacionais[[#This Row],[Anterior anterior]])-1),IF(AND(DespesasOperacionais[[#This Row],[Atual anterior]]<DespesasOperacionais[[#This Row],[Anterior anterior]],DespesasOperacionais[[#This Row],[Anterior anterior]]<0),-((DespesasOperacionais[[#This Row],[Atual anterior]]/DespesasOperacionais[[#This Row],[Anterior anterior]])-1),(DespesasOperacionais[[#This Row],[Atual anterior]]/DespesasOperacionais[[#This Row],[Anterior anterior]])-1))),\"-\")","v":{"v":0,"d":"0.00%"}},{"$f":"IFERROR(IF(DespesasOperacionais[[#This Row],[Orçamento]]=DespesasOperacionais[[#This Row],[Atual anterior]],0,IF(DespesasOperacionais[[#This Row],[Atual anterior]]>DespesasOperacionais[[#This Row],[Orçamento]],ABS((DespesasOperacionais[[#This Row],[Atual anterior]]/DespesasOperacionais[[#This Row],[Orçamento]])-1),IF(AND(DespesasOperacionais[[#This Row],[Atual anterior]]<DespesasOperacionais[[#This Row],[Orçamento]],DespesasOperacionais[[#This Row],[Orçamento]]<0),-((DespesasOperacionais[[#This Row],[Atual anterior]]/DespesasOperacionais[[#This Row],[Orçamento]])-1),(DespesasOperacionais[[#This Row],[Atual anterior]]/DespesasOperacionais[[#This Row],[Orçamento]])-1))),\"-\")","v":{"v":0,"d":"0.00%"}}]
[null,null,"Vendas e marketing","Outras despesas (especificar)",{"$nulls":3},{"$f":"IFERROR(IF(Receita_de_vendas=0,\"-\",DespesasOperacionais[[#This Row],[Atual anterior]]/Receita_de_vendas),\"-\")","v":{"v":0,"d":"0.00%"}},{"$f":"IFERROR(IF(DespesasOperacionais[[#This Row],[Anterior anterior]]=DespesasOperacionais[[#This Row],[Atual anterior]],0,IF(DespesasOperacionais[[#This Row],[Atual anterior]]>DespesasOperacionais[[#This Row],[Anterior anterior]],ABS((DespesasOperacionais[[#This Row],[Atual anterior]]/DespesasOperacionais[[#This Row],[Anterior anterior]])-1),IF(AND(DespesasOperacionais[[#This Row],[Atual anterior]]<DespesasOperacionais[[#This Row],[Anterior anterior]],DespesasOperacionais[[#This Row],[Anterior anterior]]<0),-((DespesasOperacionais[[#This Row],[Atual anterior]]/DespesasOperacionais[[#This Row],[Anterior anterior]])-1),(DespesasOperacionais[[#This Row],[Atual anterior]]/DespesasOperacionais[[#This Row],[Anterior anterior]])-1))),\"-\")","v":{"v":0,"d":"0.00%"}},{"$f":"IFERROR(IF(DespesasOperacionais[[#This Row],[Orçamento]]=DespesasOperacionais[[#This Row],[Atual anterior]],0,IF(DespesasOperacionais[[#This Row],[Atual anterior]]>DespesasOperacionais[[#This Row],[Orçamento]],ABS((DespesasOperacionais[[#This Row],[Atual anterior]]/DespesasOperacionais[[#This Row],[Orçamento]])-1),IF(AND(DespesasOperacionais[[#This Row],[Atual anterior]]<DespesasOperacionais[[#This Row],[Orçamento]],DespesasOperacionais[[#This Row],[Orçamento]]<0),-((DespesasOperacionais[[#This Row],[Atual anterior]]/DespesasOperacionais[[#This Row],[Orçamento]])-1),(DespesasOperacionais[[#This Row],[Atual anterior]]/DespesasOperacionais[[#This Row],[Orçamento]])-1))),\"-\")","v":{"v":0,"d":"0.00%"}}]
[null,null,"Pesquisa e desenvolvimento","Licenças de tecnologia",{"$nulls":3},{"$f":"IFERROR(IF(Receita_de_vendas=0,\"-\",DespesasOperacionais[[#This Row],[Atual anterior]]/Receita_de_vendas),\"-\")","v":{"v":0,"d":"0.00%"}},{"$f":"IFERROR(IF(DespesasOperacionais[[#This Row],[Anterior anterior]]=DespesasOperacionais[[#This Row],[Atual anterior]],0,IF(DespesasOperacionais[[#This Row],[Atual anterior]]>DespesasOperacionais[[#This Row],[Anterior anterior]],ABS((DespesasOperacionais[[#This Row],[Atual anterior]]/DespesasOperacionais[[#This Row],[Anterior anterior]])-1),IF(AND(DespesasOperacionais[[#This Row],[Atual anterior]]<DespesasOperacionais[[#This Row],[Anterior anterior]],DespesasOperacionais[[#This Row],[Anterior anterior]]<0),-((DespesasOperacionais[[#This Row],[Atual anterior]]/DespesasOperacionais[[#This Row],[Anterior anterior]])-1),(DespesasOperacionais[[#This Row],[Atual anterior]]/DespesasOperacionais[[#This Row],[Anterior anterior]])-1))),\"-\")","v":{"v":0,"d":"0.00%"}},{"$f":"IFERROR(IF(DespesasOperacionais[[#This Row],[Orçamento]]=DespesasOperacionais[[#This Row],[Atual anterior]],0,IF(DespesasOperacionais[[#This Row],[Atual anterior]]>DespesasOperacionais[[#This Row],[Orçamento]],ABS((DespesasOperacionais[[#This Row],[Atual anterior]]/DespesasOperacionais[[#This Row],[Orçamento]])-1),IF(AND(DespesasOperacionais[[#This Row],[Atual anterior]]<DespesasOperacionais[[#This Row],[Orçamento]],DespesasOperacionais[[#This Row],[Orçamento]]<0),-((DespesasOperacionais[[#This Row],[Atual anterior]]/DespesasOperacionais[[#This Row],[Orçamento]])-1),(DespesasOperacionais[[#This Row],[Atual anterior]]/DespesasOperacionais[[#This Row],[Orçamento]])-1))),\"-\")","v":{"v":0,"d":"0.00%"}}]
[null,null,"Pesquisa e desenvolvimento","Patentes ",{"$nulls":3},{"$f":"IFERROR(IF(Receita_de_vendas=0,\"-\",DespesasOperacionais[[#This Row],[Atual anterior]]/Receita_de_vendas),\"-\")","v":{"v":0,"d":"0.00%"}},{"$f":"IFERROR(IF(DespesasOperacionais[[#This Row],[Anterior anterior]]=DespesasOperacionais[[#This Row],[Atual anterior]],0,IF(DespesasOperacionais[[#This Row],[Atual anterior]]>DespesasOperacionais[[#This Row],[Anterior anterior]],ABS((DespesasOperacionais[[#This Row],[Atual anterior]]/DespesasOperacionais[[#This Row],[Anterior anterior]])-1),IF(AND(DespesasOperacionais[[#This Row],[Atual anterior]]<DespesasOperacionais[[#This Row],[Anterior anterior]],DespesasOperacionais[[#This Row],[Anterior anterior]]<0),-((DespesasOperacionais[[#This Row],[Atual anterior]]/DespesasOperacionais[[#This Row],[Anterior anterior]])-1),(DespesasOperacionais[[#This Row],[Atual anterior]]/DespesasOperacionais[[#This Row],[Anterior anterior]])-1))),\"-\")","v":{"v":0,"d":"0.00%"}},{"$f":"IFERROR(IF(DespesasOperacionais[[#This Row],[Orçamento]]=DespesasOperacionais[[#This Row],[Atual anterior]],0,IF(DespesasOperacionais[[#This Row],[Atual anterior]]>DespesasOperacionais[[#This Row],[Orçamento]],ABS((DespesasOperacionais[[#This Row],[Atual anterior]]/DespesasOperacionais[[#This Row],[Orçamento]])-1),IF(AND(DespesasOperacionais[[#This Row],[Atual anterior]]<DespesasOperacionais[[#This Row],[Orçamento]],DespesasOperacionais[[#This Row],[Orçamento]]<0),-((DespesasOperacionais[[#This Row],[Atual anterior]]/DespesasOperacionais[[#This Row],[Orçamento]])-1),(DespesasOperacionais[[#This Row],[Atual anterior]]/DespesasOperacionais[[#This Row],[Orçamento]])-1))),\"-\")","v":{"v":0,"d":"0.00%"}}]
[null,null,"Pesquisa e desenvolvimento","Outras despesas (especificar)",{"$nulls":3},{"$f":"IFERROR(IF(Receita_de_vendas=0,\"-\",DespesasOperacionais[[#This Row],[Atual anterior]]/Receita_de_vendas),\"-\")","v":{"v":0,"d":"0.00%"}},{"$f":"IFERROR(IF(DespesasOperacionais[[#This Row],[Anterior anterior]]=DespesasOperacionais[[#This Row],[Atual anterior]],0,IF(DespesasOperacionais[[#This Row],[Atual anterior]]>DespesasOperacionais[[#This Row],[Anterior anterior]],ABS((DespesasOperacionais[[#This Row],[Atual anterior]]/DespesasOperacionais[[#This Row],[Anterior anterior]])-1),IF(AND(DespesasOperacionais[[#This Row],[Atual anterior]]<DespesasOperacionais[[#This Row],[Anterior anterior]],DespesasOperacionais[[#This Row],[Anterior anterior]]<0),-((DespesasOperacionais[[#This Row],[Atual anterior]]/DespesasOperacionais[[#This Row],[Anterior anterior]])-1),(DespesasOperacionais[[#This Row],[Atual anterior]]/DespesasOperacionais[[#This Row],[Anterior anterior]])-1))),\"-\")","v":{"v":0,"d":"0.00%"}},{"$f":"IFERROR(IF(DespesasOperacionais[[#This Row],[Orçamento]]=DespesasOperacionais[[#This Row],[Atual anterior]],0,IF(DespesasOperacionais[[#This Row],[Atual anterior]]>DespesasOperacionais[[#This Row],[Orçamento]],ABS((DespesasOperacionais[[#This Row],[Atual anterior]]/DespesasOperacionais[[#This Row],[Orçamento]])-1),IF(AND(DespesasOperacionais[[#This Row],[Atual anterior]]<DespesasOperacionais[[#This Row],[Orçamento]],DespesasOperacionais[[#This Row],[Orçamento]]<0),-((DespesasOperacionais[[#This Row],[Atual anterior]]/DespesasOperacionais[[#This Row],[Orçamento]])-1),(DespesasOperacionais[[#This Row],[Atual anterior]]/DespesasOperacionais[[#This Row],[Orçamento]])-1))),\"-\")","v":{"v":0,"d":"0.00%"}}]
[null,null,"Pesquisa e desenvolvimento","Outras despesas (especificar)",{"$nulls":3},{"$f":"IFERROR(IF(Receita_de_vendas=0,\"-\",DespesasOperacionais[[#This Row],[Atual anterior]]/Receita_de_vendas),\"-\")","v":{"v":0,"d":"0.00%"}},{"$f":"IFERROR(IF(DespesasOperacionais[[#This Row],[Anterior anterior]]=DespesasOperacionais[[#This Row],[Atual anterior]],0,IF(DespesasOperacionais[[#This Row],[Atual anterior]]>DespesasOperacionais[[#This Row],[Anterior anterior]],ABS((DespesasOperacionais[[#This Row],[Atual anterior]]/DespesasOperacionais[[#This Row],[Anterior anterior]])-1),IF(AND(DespesasOperacionais[[#This Row],[Atual anterior]]<DespesasOperacionais[[#This Row],[Anterior anterior]],DespesasOperacionais[[#This Row],[Anterior anterior]]<0),-((DespesasOperacionais[[#This Row],[Atual anterior]]/DespesasOperacionais[[#This Row],[Anterior anterior]])-1),(DespesasOperacionais[[#This Row],[Atual anterior]]/DespesasOperacionais[[#This Row],[Anterior anterior]])-1))),\"-\")","v":{"v":0,"d":"0.00%"}},{"$f":"IFERROR(IF(DespesasOperacionais[[#This Row],[Orçamento]]=DespesasOperacionais[[#This Row],[Atual anterior]],0,IF(DespesasOperacionais[[#This Row],[Atual anterior]]>DespesasOperacionais[[#This Row],[Orçamento]],ABS((DespesasOperacionais[[#This Row],[Atual anterior]]/DespesasOperacionais[[#This Row],[Orçamento]])-1),IF(AND(DespesasOperacionais[[#This Row],[Atual anterior]]<DespesasOperacionais[[#This Row],[Orçamento]],DespesasOperacionais[[#This Row],[Orçamento]]<0),-((DespesasOperacionais[[#This Row],[Atual anterior]]/DespesasOperacionais[[#This Row],[Orçamento]])-1),(DespesasOperacionais[[#This Row],[Atual anterior]]/DespesasOperacionais[[#This Row],[Orçamento]])-1))),\"-\")","v":{"v":0,"d":"0.00%"}}]
[null,null,"Geral e administrativo","Ordenados e salários",{"$nulls":3},{"$f":"IFERROR(IF(Receita_de_vendas=0,\"-\",DespesasOperacionais[[#This Row],[Atual anterior]]/Receita_de_vendas),\"-\")","v":{"v":0,"d":"0.00%"}},{"$f":"IFERROR(IF(DespesasOperacionais[[#This Row],[Anterior anterior]]=DespesasOperacionais[[#This Row],[Atual anterior]],0,IF(DespesasOperacionais[[#This Row],[Atual anterior]]>DespesasOperacionais[[#This Row],[Anterior anterior]],ABS((DespesasOperacionais[[#This Row],[Atual anterior]]/DespesasOperacionais[[#This Row],[Anterior anterior]])-1),IF(AND(DespesasOperacionais[[#This Row],[Atual anterior]]<DespesasOperacionais[[#This Row],[Anterior anterior]],DespesasOperacionais[[#This Row],[Anterior anterior]]<0),-((DespesasOperacionais[[#This Row],[Atual anterior]]/DespesasOperacionais[[#This Row],[Anterior anterior]])-1),(DespesasOperacionais[[#This Row],[Atual anterior]]/DespesasOperacionais[[#This Row],[Anterior anterior]])-1))),\"-\")","v":{"v":0,"d":"0.00%"}},{"$f":"IFERROR(IF(DespesasOperacionais[[#This Row],[Orçamento]]=DespesasOperacionais[[#This Row],[Atual anterior]],0,IF(DespesasOperacionais[[#This Row],[Atual anterior]]>DespesasOperacionais[[#This Row],[Orçamento]],ABS((DespesasOperacionais[[#This Row],[Atual anterior]]/DespesasOperacionais[[#This Row],[Orçamento]])-1),IF(AND(DespesasOperacionais[[#This Row],[Atual anterior]]<DespesasOperacionais[[#This Row],[Orçamento]],DespesasOperacionais[[#This Row],[Orçamento]]<0),-((DespesasOperacionais[[#This Row],[Atual anterior]]/DespesasOperacionais[[#This Row],[Orçamento]])-1),(DespesasOperacionais[[#This Row],[Atual anterior]]/DespesasOperacionais[[#This Row],[Orçamento]])-1))),\"-\")","v":{"v":0,"d":"0.00%"}}]
[null,null,"Geral e administrativo","Serviços externos",{"$nulls":3},{"$f":"IFERROR(IF(Receita_de_vendas=0,\"-\",DespesasOperacionais[[#This Row],[Atual anterior]]/Receita_de_vendas),\"-\")","v":{"v":0,"d":"0.00%"}},{"$f":"IFERROR(IF(DespesasOperacionais[[#This Row],[Anterior anterior]]=DespesasOperacionais[[#This Row],[Atual anterior]],0,IF(DespesasOperacionais[[#This Row],[Atual anterior]]>DespesasOperacionais[[#This Row],[Anterior anterior]],ABS((DespesasOperacionais[[#This Row],[Atual anterior]]/DespesasOperacionais[[#This Row],[Anterior anterior]])-1),IF(AND(DespesasOperacionais[[#This Row],[Atual anterior]]<DespesasOperacionais[[#This Row],[Anterior anterior]],DespesasOperacionais[[#This Row],[Anterior anterior]]<0),-((DespesasOperacionais[[#This Row],[Atual anterior]]/DespesasOperacionais[[#This Row],[Anterior anterior]])-1),(DespesasOperacionais[[#This Row],[Atual anterior]]/DespesasOperacionais[[#This Row],[Anterior anterior]])-1))),\"-\")","v":{"v":0,"d":"0.00%"}},{"$f":"IFERROR(IF(DespesasOperacionais[[#This Row],[Orçamento]]=DespesasOperacionais[[#This Row],[Atual anterior]],0,IF(DespesasOperacionais[[#This Row],[Atual anterior]]>DespesasOperacionais[[#This Row],[Orçamento]],ABS((DespesasOperacionais[[#This Row],[Atual anterior]]/DespesasOperacionais[[#This Row],[Orçamento]])-1),IF(AND(DespesasOperacionais[[#This Row],[Atual anterior]]<DespesasOperacionais[[#This Row],[Orçamento]],DespesasOperacionais[[#This Row],[Orçamento]]<0),-((DespesasOperacionais[[#This Row],[Atual anterior]]/DespesasOperacionais[[#This Row],[Orçamento]])-1),(DespesasOperacionais[[#This Row],[Atual anterior]]/DespesasOperacionais[[#This Row],[Orçamento]])-1))),\"-\")","v":{"v":0,"d":"0.00%"}}]
[null,null,"Geral e administrativo","Materiais",{"$nulls":3},{"$f":"IFERROR(IF(Receita_de_vendas=0,\"-\",DespesasOperacionais[[#This Row],[Atual anterior]]/Receita_de_vendas),\"-\")","v":{"v":0,"d":"0.00%"}},{"$f":"IFERROR(IF(DespesasOperacionais[[#This Row],[Anterior anterior]]=DespesasOperacionais[[#This Row],[Atual anterior]],0,IF(DespesasOperacionais[[#This Row],[Atual anterior]]>DespesasOperacionais[[#This Row],[Anterior anterior]],ABS((DespesasOperacionais[[#This Row],[Atual anterior]]/DespesasOperacionais[[#This Row],[Anterior anterior]])-1),IF(AND(DespesasOperacionais[[#This Row],[Atual anterior]]<DespesasOperacionais[[#This Row],[Anterior anterior]],DespesasOperacionais[[#This Row],[Anterior anterior]]<0),-((DespesasOperacionais[[#This Row],[Atual anterior]]/DespesasOperacionais[[#This Row],[Anterior anterior]])-1),(DespesasOperacionais[[#This Row],[Atual anterior]]/DespesasOperacionais[[#This Row],[Anterior anterior]])-1))),\"-\")","v":{"v":0,"d":"0.00%"}},{"$f":"IFERROR(IF(DespesasOperacionais[[#This Row],[Orçamento]]=DespesasOperacionais[[#This Row],[Atual anterior]],0,IF(DespesasOperacionais[[#This Row],[Atual anterior]]>DespesasOperacionais[[#This Row],[Orçamento]],ABS((DespesasOperacionais[[#This Row],[Atual anterior]]/DespesasOperacionais[[#This Row],[Orçamento]])-1),IF(AND(DespesasOperacionais[[#This Row],[Atual anterior]]<DespesasOperacionais[[#This Row],[Orçamento]],DespesasOperacionais[[#This Row],[Orçamento]]<0),-((DespesasOperacionais[[#This Row],[Atual anterior]]/DespesasOperacionais[[#This Row],[Orçamento]])-1),(DespesasOperacionais[[#This Row],[Atual anterior]]/DespesasOperacionais[[#This Row],[Orçamento]])-1))),\"-\")","v":{"v":0,"d":"0.00%"}}]
[null,null,"Geral e administrativo","Refeições e entretenimento",{"$nulls":3},{"$f":"IFERROR(IF(Receita_de_vendas=0,\"-\",DespesasOperacionais[[#This Row],[Atual anterior]]/Receita_de_vendas),\"-\")","v":{"v":0,"d":"0.00%"}},{"$f":"IFERROR(IF(DespesasOperacionais[[#This Row],[Anterior anterior]]=DespesasOperacionais[[#This Row],[Atual anterior]],0,IF(DespesasOperacionais[[#This Row],[Atual anterior]]>DespesasOperacionais[[#This Row],[Anterior anterior]],ABS((DespesasOperacionais[[#This Row],[Atual anterior]]/DespesasOperacionais[[#This Row],[Anterior anterior]])-1),IF(AND(DespesasOperacionais[[#This Row],[Atual anterior]]<DespesasOperacionais[[#This Row],[Anterior anterior]],DespesasOperacionais[[#This Row],[Anterior anterior]]<0),-((DespesasOperacionais[[#This Row],[Atual anterior]]/DespesasOperacionais[[#This Row],[Anterior anterior]])-1),(DespesasOperacionais[[#This Row],[Atual anterior]]/DespesasOperacionais[[#This Row],[Anterior anterior]])-1))),\"-\")","v":{"v":0,"d":"0.00%"}},{"$f":"IFERROR(IF(DespesasOperacionais[[#This Row],[Orçamento]]=DespesasOperacionais[[#This Row],[Atual anterior]],0,IF(DespesasOperacionais[[#This Row],[Atual anterior]]>DespesasOperacionais[[#This Row],[Orçamento]],ABS((DespesasOperacionais[[#This Row],[Atual anterior]]/DespesasOperacionais[[#This Row],[Orçamento]])-1),IF(AND(DespesasOperacionais[[#This Row],[Atual anterior]]<DespesasOperacionais[[#This Row],[Orçamento]],DespesasOperacionais[[#This Row],[Orçamento]]<0),-((DespesasOperacionais[[#This Row],[Atual anterior]]/DespesasOperacionais[[#This Row],[Orçamento]])-1),(DespesasOperacionais[[#This Row],[Atual anterior]]/DespesasOperacionais[[#This Row],[Orçamento]])-1))),\"-\")","v":{"v":0,"d":"0.00%"}}]
[null,null,"Geral e administrativo","Aluguel",{"$nulls":3},{"$f":"IFERROR(IF(Receita_de_vendas=0,\"-\",DespesasOperacionais[[#This Row],[Atual anterior]]/Receita_de_vendas),\"-\")","v":{"v":0,"d":"0.00%"}},{"$f":"IFERROR(IF(DespesasOperacionais[[#This Row],[Anterior anterior]]=DespesasOperacionais[[#This Row],[Atual anterior]],0,IF(DespesasOperacionais[[#This Row],[Atual anterior]]>DespesasOperacionais[[#This Row],[Anterior anterior]],ABS((DespesasOperacionais[[#This Row],[Atual anterior]]/DespesasOperacionais[[#This Row],[Anterior anterior]])-1),IF(AND(DespesasOperacionais[[#This Row],[Atual anterior]]<DespesasOperacionais[[#This Row],[Anterior anterior]],DespesasOperacionais[[#This Row],[Anterior anterior]]<0),-((DespesasOperacionais[[#This Row],[Atual anterior]]/DespesasOperacionais[[#This Row],[Anterior anterior]])-1),(DespesasOperacionais[[#This Row],[Atual anterior]]/DespesasOperacionais[[#This Row],[Anterior anterior]])-1))),\"-\")","v":{"v":0,"d":"0.00%"}},{"$f":"IFERROR(IF(DespesasOperacionais[[#This Row],[Orçamento]]=DespesasOperacionais[[#This Row],[Atual anterior]],0,IF(DespesasOperacionais[[#This Row],[Atual anterior]]>DespesasOperacionais[[#This Row],[Orçamento]],ABS((DespesasOperacionais[[#This Row],[Atual anterior]]/DespesasOperacionais[[#This Row],[Orçamento]])-1),IF(AND(DespesasOperacionais[[#This Row],[Atual anterior]]<DespesasOperacionais[[#This Row],[Orçamento]],DespesasOperacionais[[#This Row],[Orçamento]]<0),-((DespesasOperacionais[[#This Row],[Atual anterior]]/DespesasOperacionais[[#This Row],[Orçamento]])-1),(DespesasOperacionais[[#This Row],[Atual anterior]]/DespesasOperacionais[[#This Row],[Orçamento]])-1))),\"-\")","v":{"v":0,"d":"0.00%"}}]
[null,null,"Geral e administrativo","Telefone",{"$nulls":3},{"$f":"IFERROR(IF(Receita_de_vendas=0,\"-\",DespesasOperacionais[[#This Row],[Atual anterior]]/Receita_de_vendas),\"-\")","v":{"v":0,"d":"0.00%"}},{"$f":"IFERROR(IF(DespesasOperacionais[[#This Row],[Anterior anterior]]=DespesasOperacionais[[#This Row],[Atual anterior]],0,IF(DespesasOperacionais[[#This Row],[Atual anterior]]>DespesasOperacionais[[#This Row],[Anterior anterior]],ABS((DespesasOperacionais[[#This Row],[Atual anterior]]/DespesasOperacionais[[#This Row],[Anterior anterior]])-1),IF(AND(DespesasOperacionais[[#This Row],[Atual anterior]]<DespesasOperacionais[[#This Row],[Anterior anterior]],DespesasOperacionais[[#This Row],[Anterior anterior]]<0),-((DespesasOperacionais[[#This Row],[Atual anterior]]/DespesasOperacionais[[#This Row],[Anterior anterior]])-1),(DespesasOperacionais[[#This Row],[Atual anterior]]/DespesasOperacionais[[#This Row],[Anterior anterior]])-1))),\"-\")","v":{"v":0,"d":"0.00%"}},{"$f":"IFERROR(IF(DespesasOperacionais[[#This Row],[Orçamento]]=DespesasOperacionais[[#This Row],[Atual anterior]],0,IF(DespesasOperacionais[[#This Row],[Atual anterior]]>DespesasOperacionais[[#This Row],[Orçamento]],ABS((DespesasOperacionais[[#This Row],[Atual anterior]]/DespesasOperacionais[[#This Row],[Orçamento]])-1),IF(AND(DespesasOperacionais[[#This Row],[Atual anterior]]<DespesasOperacionais[[#This Row],[Orçamento]],DespesasOperacionais[[#This Row],[Orçamento]]<0),-((DespesasOperacionais[[#This Row],[Atual anterior]]/DespesasOperacionais[[#This Row],[Orçamento]])-1),(DespesasOperacionais[[#This Row],[Atual anterior]]/DespesasOperacionais[[#This Row],[Orçamento]])-1))),\"-\")","v":{"v":0,"d":"0.00%"}}]
[null,null,"Geral e administrativo","Utilitários",{"$nulls":3},{"$f":"IFERROR(IF(Receita_de_vendas=0,\"-\",DespesasOperacionais[[#This Row],[Atual anterior]]/Receita_de_vendas),\"-\")","v":{"v":0,"d":"0.00%"}},{"$f":"IFERROR(IF(DespesasOperacionais[[#This Row],[Anterior anterior]]=DespesasOperacionais[[#This Row],[Atual anterior]],0,IF(DespesasOperacionais[[#This Row],[Atual anterior]]>DespesasOperacionais[[#This Row],[Anterior anterior]],ABS((DespesasOperacionais[[#This Row],[Atual anterior]]/DespesasOperacionais[[#This Row],[Anterior anterior]])-1),IF(AND(DespesasOperacionais[[#This Row],[Atual anterior]]<DespesasOperacionais[[#This Row],[Anterior anterior]],DespesasOperacionais[[#This Row],[Anterior anterior]]<0),-((DespesasOperacionais[[#This Row],[Atual anterior]]/DespesasOperacionais[[#This Row],[Anterior anterior]])-1),(DespesasOperacionais[[#This Row],[Atual anterior]]/DespesasOperacionais[[#This Row],[Anterior anterior]])-1))),\"-\")","v":{"v":0,"d":"0.00%"}},{"$f":"IFERROR(IF(DespesasOperacionais[[#This Row],[Orçamento]]=DespesasOperacionais[[#This Row],[Atual anterior]],0,IF(DespesasOperacionais[[#This Row],[Atual anterior]]>DespesasOperacionais[[#This Row],[Orçamento]],ABS((DespesasOperacionais[[#This Row],[Atual anterior]]/DespesasOperacionais[[#This Row],[Orçamento]])-1),IF(AND(DespesasOperacionais[[#This Row],[Atual anterior]]<DespesasOperacionais[[#This Row],[Orçamento]],DespesasOperacionais[[#This Row],[Orçamento]]<0),-((DespesasOperacionais[[#This Row],[Atual anterior]]/DespesasOperacionais[[#This Row],[Orçamento]])-1),(DespesasOperacionais[[#This Row],[Atual anterior]]/DespesasOperacionais[[#This Row],[Orçamento]])-1))),\"-\")","v":{"v":0,"d":"0.00%"}}]
[null,null,"Geral e administrativo","Depreciação",{"$nulls":3},{"$f":"IFERROR(IF(Receita_de_vendas=0,\"-\",DespesasOperacionais[[#This Row],[Atual anterior]]/Receita_de_vendas),\"-\")","v":{"v":0,"d":"0.00%"}},{"$f":"IFERROR(IF(DespesasOperacionais[[#This Row],[Anterior anterior]]=DespesasOperacionais[[#This Row],[Atual anterior]],0,IF(DespesasOperacionais[[#This Row],[Atual anterior]]>DespesasOperacionais[[#This Row],[Anterior anterior]],ABS((DespesasOperacionais[[#This Row],[Atual anterior]]/DespesasOperacionais[[#This Row],[Anterior anterior]])-1),IF(AND(DespesasOperacionais[[#This Row],[Atual anterior]]<DespesasOperacionais[[#This Row],[Anterior anterior]],DespesasOperacionais[[#This Row],[Anterior anterior]]<0),-((DespesasOperacionais[[#This Row],[Atual anterior]]/DespesasOperacionais[[#This Row],[Anterior anterior]])-1),(DespesasOperacionais[[#This Row],[Atual anterior]]/DespesasOperacionais[[#This Row],[Anterior anterior]])-1))),\"-\")","v":{"v":0,"d":"0.00%"}},{"$f":"IFERROR(IF(DespesasOperacionais[[#This Row],[Orçamento]]=DespesasOperacionais[[#This Row],[Atual anterior]],0,IF(DespesasOperacionais[[#This Row],[Atual anterior]]>DespesasOperacionais[[#This Row],[Orçamento]],ABS((DespesasOperacionais[[#This Row],[Atual anterior]]/DespesasOperacionais[[#This Row],[Orçamento]])-1),IF(AND(DespesasOperacionais[[#This Row],[Atual anterior]]<DespesasOperacionais[[#This Row],[Orçamento]],DespesasOperacionais[[#This Row],[Orçamento]]<0),-((DespesasOperacionais[[#This Row],[Atual anterior]]/DespesasOperacionais[[#This Row],[Orçamento]])-1),(DespesasOperacionais[[#This Row],[Atual anterior]]/DespesasOperacionais[[#This Row],[Orçamento]])-1))),\"-\")","v":{"v":0,"d":"0.00%"}}]
[null,null,"Geral e administrativo","Seguro",{"$nulls":3},{"$f":"IFERROR(IF(Receita_de_vendas=0,\"-\",DespesasOperacionais[[#This Row],[Atual anterior]]/Receita_de_vendas),\"-\")","v":{"v":0,"d":"0.00%"}},{"$f":"IFERROR(IF(DespesasOperacionais[[#This Row],[Anterior anterior]]=DespesasOperacionais[[#This Row],[Atual anterior]],0,IF(DespesasOperacionais[[#This Row],[Atual anterior]]>DespesasOperacionais[[#This Row],[Anterior anterior]],ABS((DespesasOperacionais[[#This Row],[Atual anterior]]/DespesasOperacionais[[#This Row],[Anterior anterior]])-1),IF(AND(DespesasOperacionais[[#This Row],[Atual anterior]]<DespesasOperacionais[[#This Row],[Anterior anterior]],DespesasOperacionais[[#This Row],[Anterior anterior]]<0),-((DespesasOperacionais[[#This Row],[Atual anterior]]/DespesasOperacionais[[#This Row],[Anterior anterior]])-1),(DespesasOperacionais[[#This Row],[Atual anterior]]/DespesasOperacionais[[#This Row],[Anterior anterior]])-1))),\"-\")","v":{"v":0,"d":"0.00%"}},{"$f":"IFERROR(IF(DespesasOperacionais[[#This Row],[Orçamento]]=DespesasOperacionais[[#This Row],[Atual anterior]],0,IF(DespesasOperacionais[[#This Row],[Atual anterior]]>DespesasOperacionais[[#This Row],[Orçamento]],ABS((DespesasOperacionais[[#This Row],[Atual anterior]]/DespesasOperacionais[[#This Row],[Orçamento]])-1),IF(AND(DespesasOperacionais[[#This Row],[Atual anterior]]<DespesasOperacionais[[#This Row],[Orçamento]],DespesasOperacionais[[#This Row],[Orçamento]]<0),-((DespesasOperacionais[[#This Row],[Atual anterior]]/DespesasOperacionais[[#This Row],[Orçamento]])-1),(DespesasOperacionais[[#This Row],[Atual anterior]]/DespesasOperacionais[[#This Row],[Orçamento]])-1))),\"-\")","v":{"v":0,"d":"0.00%"}}]
[null,null,"Geral e administrativo","Reparos e manutenção",{"$nulls":3},{"$f":"IFERROR(IF(Receita_de_vendas=0,\"-\",DespesasOperacionais[[#This Row],[Atual anterior]]/Receita_de_vendas),\"-\")","v":{"v":0,"d":"0.00%"}},{"$f":"IFERROR(IF(DespesasOperacionais[[#This Row],[Anterior anterior]]=DespesasOperacionais[[#This Row],[Atual anterior]],0,IF(DespesasOperacionais[[#This Row],[Atual anterior]]>DespesasOperacionais[[#This Row],[Anterior anterior]],ABS((DespesasOperacionais[[#This Row],[Atual anterior]]/DespesasOperacionais[[#This Row],[Anterior anterior]])-1),IF(AND(DespesasOperacionais[[#This Row],[Atual anterior]]<DespesasOperacionais[[#This Row],[Anterior anterior]],DespesasOperacionais[[#This Row],[Anterior anterior]]<0),-((DespesasOperacionais[[#This Row],[Atual anterior]]/DespesasOperacionais[[#This Row],[Anterior anterior]])-1),(DespesasOperacionais[[#This Row],[Atual anterior]]/DespesasOperacionais[[#This Row],[Anterior anterior]])-1))),\"-\")","v":{"v":0,"d":"0.00%"}},{"$f":"IFERROR(IF(DespesasOperacionais[[#This Row],[Orçamento]]=DespesasOperacionais[[#This Row],[Atual anterior]],0,IF(DespesasOperacionais[[#This Row],[Atual anterior]]>DespesasOperacionais[[#This Row],[Orçamento]],ABS((DespesasOperacionais[[#This Row],[Atual anterior]]/DespesasOperacionais[[#This Row],[Orçamento]])-1),IF(AND(DespesasOperacionais[[#This Row],[Atual anterior]]<DespesasOperacionais[[#This Row],[Orçamento]],DespesasOperacionais[[#This Row],[Orçamento]]<0),-((DespesasOperacionais[[#This Row],[Atual anterior]]/DespesasOperacionais[[#This Row],[Orçamento]])-1),(DespesasOperacionais[[#This Row],[Atual anterior]]/DespesasOperacionais[[#This Row],[Orçamento]])-1))),\"-\")","v":{"v":0,"d":"0.00%"}}]
[null,null,"Geral e administrativo","Outras despesas (especificar)",{"$nulls":3},{"$f":"IFERROR(IF(Receita_de_vendas=0,\"-\",DespesasOperacionais[[#This Row],[Atual anterior]]/Receita_de_vendas),\"-\")","v":{"v":0,"d":"0.00%"}},{"$f":"IFERROR(IF(DespesasOperacionais[[#This Row],[Anterior anterior]]=DespesasOperacionais[[#This Row],[Atual anterior]],0,IF(DespesasOperacionais[[#This Row],[Atual anterior]]>DespesasOperacionais[[#This Row],[Anterior anterior]],ABS((DespesasOperacionais[[#This Row],[Atual anterior]]/DespesasOperacionais[[#This Row],[Anterior anterior]])-1),IF(AND(DespesasOperacionais[[#This Row],[Atual anterior]]<DespesasOperacionais[[#This Row],[Anterior anterior]],DespesasOperacionais[[#This Row],[Anterior anterior]]<0),-((DespesasOperacionais[[#This Row],[Atual anterior]]/DespesasOperacionais[[#This Row],[Anterior anterior]])-1),(DespesasOperacionais[[#This Row],[Atual anterior]]/DespesasOperacionais[[#This Row],[Anterior anterior]])-1))),\"-\")","v":{"v":0,"d":"0.00%"}},{"$f":"IFERROR(IF(DespesasOperacionais[[#This Row],[Orçamento]]=DespesasOperacionais[[#This Row],[Atual anterior]],0,IF(DespesasOperacionais[[#This Row],[Atual anterior]]>DespesasOperacionais[[#This Row],[Orçamento]],ABS((DespesasOperacionais[[#This Row],[Atual anterior]]/DespesasOperacionais[[#This Row],[Orçamento]])-1),IF(AND(DespesasOperacionais[[#This Row],[Atual anterior]]<DespesasOperacionais[[#This Row],[Orçamento]],DespesasOperacionais[[#This Row],[Orçamento]]<0),-((DespesasOperacionais[[#This Row],[Atual anterior]]/DespesasOperacionais[[#This Row],[Orçamento]])-1),(DespesasOperacionais[[#This Row],[Atual anterior]]/DespesasOperacionais[[#This Row],[Orçamento]])-1))),\"-\")","v":{"v":0,"d":"0.00%"}}]
[null,null,"Geral e administrativo","Outras despesas (especificar)",{"$nulls":3},{"$f":"IFERROR(IF(Receita_de_vendas=0,\"-\",DespesasOperacionais[[#This Row],[Atual anterior]]/Receita_de_vendas),\"-\")","v":{"v":0,"d":"0.00%"}},{"$f":"IFERROR(IF(DespesasOperacionais[[#This Row],[Anterior anterior]]=DespesasOperacionais[[#This Row],[Atual anterior]],0,IF(DespesasOperacionais[[#This Row],[Atual anterior]]>DespesasOperacionais[[#This Row],[Anterior anterior]],ABS((DespesasOperacionais[[#This Row],[Atual anterior]]/DespesasOperacionais[[#This Row],[Anterior anterior]])-1),IF(AND(DespesasOperacionais[[#This Row],[Atual anterior]]<DespesasOperacionais[[#This Row],[Anterior anterior]],DespesasOperacionais[[#This Row],[Anterior anterior]]<0),-((DespesasOperacionais[[#This Row],[Atual anterior]]/DespesasOperacionais[[#This Row],[Anterior anterior]])-1),(DespesasOperacionais[[#This Row],[Atual anterior]]/DespesasOperacionais[[#This Row],[Anterior anterior]])-1))),\"-\")","v":{"v":0,"d":"0.00%"}},{"$f":"IFERROR(IF(DespesasOperacionais[[#This Row],[Orçamento]]=DespesasOperacionais[[#This Row],[Atual anterior]],0,IF(DespesasOperacionais[[#This Row],[Atual anterior]]>DespesasOperacionais[[#This Row],[Orçamento]],ABS((DespesasOperacionais[[#This Row],[Atual anterior]]/DespesasOperacionais[[#This Row],[Orçamento]])-1),IF(AND(DespesasOperacionais[[#This Row],[Atual anterior]]<DespesasOperacionais[[#This Row],[Orçamento]],DespesasOperacionais[[#This Row],[Orçamento]]<0),-((DespesasOperacionais[[#This Row],[Atual anterior]]/DespesasOperacionais[[#This Row],[Orçamento]])-1),(DespesasOperacionais[[#This Row],[Atual anterior]]/DespesasOperacionais[[#This Row],[Orçamento]])-1))),\"-\")","v":{"v":0,"d":"0.00%"}}]
[null,null,"Total de despesas operacionais",null,{"$f":"SUBTOTAL(109,DespesasOperacionais[Anterior anterior])","v":{"v":30,"d":"R$ 30.00"}},{"$f":"SUBTOTAL(109,DespesasOperacionais[Orçamento])","v":{"v":35,"d":"R$ 35.00"}},{"$f":"SUBTOTAL(109,DespesasOperacionais[Atual anterior])","v":{"v":45,"d":"R$ 45.00"}},{"$f":"SUBTOTAL(109,DespesasOperacionais[Período atual como % das vendas])","v":{"v":0.45,"d":"45.00%"}},{"$f":"SUBTOTAL(109,DespesasOperacionais[Variação % em relação ao período anterior])","v":{"v":0.5,"d":"50.00%"}},{"$f":"SUBTOTAL(109,DespesasOperacionais[% da Alteração do orçamento])","v":{"v":0.2857142857142858,"d":"28.57%"}}]

{"sheet":"Impostos","index":4,"n_rows":13,"n_cols":10,"rows_kept":13}
[]
[]
[null,null,{"$f":"Título_Da_Pasta_De_Trabalho","v":"DEMONSTRAÇÃO DE LUCROS E PERDAS"},{"$nulls":5},"Impostos"]
[null,null,{"$f":"Nome_Empresa","v":"CELULAR SATCOM"},{"$nulls":5},"Declarado em milhares",{"$f":"IFERROR(Impostos[[#Totals],[Atual anterior]],\"-\")","v":{"v":12,"d":"R$ 12.00"}}]
[]
[]
[null,null,"Tipo","Descrição","Anterior anterior","Orçamento","Atual anterior","Período atual como % das vendas","Variação de % em relação ao período anterior","% da Alteração do orçamento"]
[null,null,"Impostos","Imposto de renda",{"v":10,"d":"R$ 10.00"},{"v":12,"d":"R$ 12.00"},{"v":12,"d":"R$ 12.00"},{"$f":"IFERROR(IF(Receita_de_vendas=0,\"-\",Impostos[[#This Row],[Atual anterior]]/Receita_de_vendas),\"-\")","v":{"v":0.12,"d":"12.00%"}},{"$f":"IFERROR(IF(Impostos[[#This Row],[Anterior anterior]]=Impostos[[#This Row],[Atual anterior]],0,IF(Impostos[[#This Row],[Atual anterior]]>Impostos[[#This Row],[Anterior anterior]],ABS((Impostos[[#This Row],[Atual anterior]]/Impostos[[#This Row],[Anterior anterior]])-1),IF(AND(Impostos[[#This Row],[Atual anterior]]<Impostos[[#This Row],[Anterior anterior]],Impostos[[#This Row],[Anterior anterior]]<0),-((Impostos[[#This Row],[Atual anterior]]/Impostos[[#This Row],[Anterior anterior]])-1),(Impostos[[#This Row],[Atual anterior]]/Impostos[[#This Row],[Anterior anterior]])-1))),\"-\")","v":{"v":0.19999999999999996,"d":"20.00%"}},{"$f":"IFERROR(IF(Impostos[[#This Row],[Orçamento]]=Impostos[[#This Row],[Atual anterior]],0,IF(Impostos[[#This Row],[Atual anterior]]>Impostos[[#This Row],[Orçamento]],ABS((Impostos[[#This Row],[Atual anterior]]/Impostos[[#This Row],[Orçamento]])-1),IF(AND(Impostos[[#This Row],[Atual anterior]]<Impostos[[#This Row],[Orçamento]],Impostos[[#This Row],[Orçamento]]<0),-((Impostos[[#This Row],[Atual anterior]]/Impostos[[#This Row],[Orçamento]])-1),(Impostos[[#This Row],[Atual anterior]]/Impostos[[#This Row],[Orçamento]])-1))),\"-\")","v":{"v":0,"d":"0.00%"}}]
[null,null,"Impostos","Impostos sobre folha de pagamento",{"$nulls":3},{"$f":"IFERROR(IF(Receita_de_vendas=0,\"-\",Impostos[[#This Row],[Atual anterior]]/Receita_de_vendas),\"-\")","v":{"v":0,"d":"0.00%"}},{"$f":"IFERROR(IF(Impostos[[#This Row],[Anterior anterior]]=Impostos[[#This Row],[Atual anterior]],0,IF(Impostos[[#This Row],[Atual anterior]]>Impostos[[#This Row],[Anterior anterior]],ABS((Impostos[[#This Row],[Atual anterior]]/Impostos[[#This Row],[Anterior anterior]])-1),IF(AND(Impostos[[#This Row],[Atual anterior]]<Impostos[[#This Row],[Anterior anterior]],Impostos[[#This Row],[Anterior anterior]]<0),-((Impostos[[#This Row],[Atual anterior]]/Impostos[[#This Row],[Anterior anterior]])-1),(Impostos[[#This Row],[Atual anterior]]/Impostos[[#This Row],[Anterior anterior]])-1))),\"-\")","v":{"v":0,"d":"0.00%"}},{"$f":"IFERROR(IF(Impostos[[#This Row],[Orçamento]]=Impostos[[#This Row],[Atual anterior]],0,IF(Impostos[[#This Row],[Atual anterior]]>Impostos[[#This Row],[Orçamento]],ABS((Impostos[[#This Row],[Atual anterior]]/Impostos[[#This Row],[Orçamento]])-1),IF(AND(Impostos[[#This Row],[Atual anterior]]<Impostos[[#This Row],[Orçamento]],Impostos[[#This Row],[Orçamento]]<0),-((Impostos[[#This Row],[Atual anterior]]/Impostos[[#This Row],[Orçamento]])-1),(Impostos[[#This Row],[Atual anterior]]/Impostos[[#This Row],[Orçamento]])-1))),\"-\")","v":{"v":0,"d":"0.00%"}}]
[null,null,"Impostos","Impostos sobre imóveis",{"$nulls":3},{"$f":"IFERROR(IF(Receita_de_vendas=0,\"-\",Impostos[[#This Row],[Atual anterior]]/Receita_de_vendas),\"-\")","v":{"v":0,"d":"0.00%"}},{"$f":"IFERROR(IF(Impostos[[#This Row],[Anterior anterior]]=Impostos[[#This Row],[Atual anterior]],0,IF(Impostos[[#This Row],[Atual anterior]]>Impostos[[#This Row],[Anterior anterior]],ABS((Impostos[[#This Row],[Atual anterior]]/Impostos[[#This Row],[Anterior anterior]])-1),IF(AND(Impostos[[#This Row],[Atual anterior]]<Impostos[[#This Row],[Anterior anterior]],Impostos[[#This Row],[Anterior anterior]]<0),-((Impostos[[#This Row],[Atual anterior]]/Impostos[[#This Row],[Anterior anterior]])-1),(Impostos[[#This Row],[Atual anterior]]/Impostos[[#This Row],[Anterior anterior]])-1))),\"-\")","v":{"v":0,"d":"0.00%"}},{"$f":"IFERROR(IF(Impostos[[#This Row],[Orçamento]]=Impostos[[#This Row],[Atual anterior]],0,IF(Impostos[[#This Row],[Atual anterior]]>Impostos[[#This Row],[Orçamento]],ABS((Impostos[[#This Row],[Atual anterior]]/Impostos[[#This Row],[Orçamento]])-1),IF(AND(Impostos[[#This Row],[Atual anterior]]<Impostos[[#This Row],[Orçamento]],Impostos[[#This Row],[Orçamento]]<0),-((Impostos[[#This Row],[Atual anterior]]/Impostos[[#This Row],[Orçamento]])-1),(Impostos[[#This Row],[Atual anterior]]/Impostos[[#This Row],[Orçamento]])-1))),\"-\")","v":{"v":0,"d":"0.00%"}}]
[null,null,"Impostos","Outros impostos (especificar)",{"$nulls":3},{"$f":"IFERROR(IF(Receita_de_vendas=0,\"-\",Impostos[[#This Row],[Atual anterior]]/Receita_de_vendas),\"-\")","v":{"v":0,"d":"0.00%"}},{"$f":"IFERROR(IF(Impostos[[#This Row],[Anterior anterior]]=Impostos[[#This Row],[Atual anterior]],0,IF(Impostos[[#This Row],[Atual anterior]]>Impostos[[#This Row],[Anterior anterior]],ABS((Impostos[[#This Row],[Atual anterior]]/Impostos[[#This Row],[Anterior anterior]])-1),IF(AND(Impostos[[#This Row],[Atual anterior]]<Impostos[[#This Row],[Anterior anterior]],Impostos[[#This Row],[Anterior anterior]]<0),-((Impostos[[#This Row],[Atual anterior]]/Impostos[[#This Row],[Anterior anterior]])-1),(Impostos[[#This Row],[Atual anterior]]/Impostos[[#This Row],[Anterior anterior]])-1))),\"-\")","v":{"v":0,"d":"0.00%"}},{"$f":"IFERROR(IF(Impostos[[#This Row],[Orçamento]]=Impostos[[#This Row],[Atual anterior]],0,IF(Impostos[[#This Row],[Atual anterior]]>Impostos[[#This Row],[Orçamento]],ABS((Impostos[[#This Row],[Atual anterior]]/Impostos[[#This Row],[Orçamento]])-1),IF(AND(Impostos[[#This Row],[Atual anterior]]<Impostos[[#This Row],[Orçamento]],Impostos[[#This Row],[Orçamento]]<0),-((Impostos[[#This Row],[Atual anterior]]/Impostos[[#This Row],[Orçamento]])-1),(Impostos[[#This Row],[Atual anterior]]/Impostos[[#This Row],[Orçamento]])-1))),\"-\")","v":{"v":0,"d":"0.00%"}}]
[null,null,"Impostos","Outros impostos (especificar)",{"$nulls":3},{"$f":"IFERROR(IF(Receita_de_vendas=0,\"-\",Impostos[[#This Row],[Atual anterior]]/Receita_de_vendas),\"-\")","v":{"v":0,"d":"0.00%"}},{"$f":"IFERROR(IF(Impostos[[#This Row],[Anterior anterior]]=Impostos[[#This Row],[Atual anterior]],0,IF(Impostos[[#This Row],[Atual anterior]]>Impostos[[#This Row],[Anterior anterior]],ABS((Impostos[[#This Row],[Atual anterior]]/Impostos[[#This Row],[Anterior anterior]])-1),IF(AND(Impostos[[#This Row],[Atual anterior]]<Impostos[[#This Row],[Anterior anterior]],Impostos[[#This Row],[Anterior anterior]]<0),-((Impostos[[#This Row],[Atual anterior]]/Impostos[[#This Row],[Anterior anterior]])-1),(Impostos[[#This Row],[Atual anterior]]/Impostos[[#This Row],[Anterior anterior]])-1))),\"-\")","v":{"v":0,"d":"0.00%"}},{"$f":"IFERROR(IF(Impostos[[#This Row],[Orçamento]]=Impostos[[#This Row],[Atual anterior]],0,IF(Impostos[[#This Row],[Atual anterior]]>Impostos[[#This Row],[Orçamento]],ABS((Impostos[[#This Row],[Atual anterior]]/Impostos[[#This Row],[Orçamento]])-1),IF(AND(Impostos[[#This Row],[Atual anterior]]<Impostos[[#This Row],[Orçamento]],Impostos[[#This Row],[Orçamento]]<0),-((Impostos[[#This Row],[Atual anterior]]/Impostos[[#This Row],[Orçamento]])-1),(Impostos[[#This Row],[Atual anterior]]/Impostos[[#This Row],[Orçamento]])-1))),\"-\")","v":{"v":0,"d":"0.00%"}}]
[null,null,"Total de impostos",null,{"$f":"SUBTOTAL(109,Impostos[Anterior anterior])","v":{"v":10,"d":"R$ 10.00"}},{"$f":"SUBTOTAL(109,Impostos[Orçamento])","v":{"v":12,"d":"R$ 12.00"}},{"$f":"SUBTOTAL(109,Impostos[Atual anterior])","v":{"v":12,"d":"R$ 12.00"}},{"$f":"IFERROR(SUBTOTAL(109,Impostos[Período atual como % das vendas]),\"-\")","v":{"v":0.12,"d":"12.00%"}},{"$f":"SUBTOTAL(109,Impostos[Variação de % em relação ao período anterior])","v":{"v":0.19999999999999996,"d":"20.00%"}},{"$f":"SUBTOTAL(109,Impostos[% da Alteração do orçamento])","v":{"v":0,"d":"0.00%"}}]

{"sheet":"Categorias","index":5,"n_rows":13,"n_cols":3,"rows_kept":13}
[]
[]
[null,null,{"$f":"Título_Da_Pasta_De_Trabalho","v":"DEMONSTRAÇÃO DE LUCROS E PERDAS"}]
[null,null,{"$f":"Nome_Empresa","v":"CELULAR SATCOM"}]
[]
[null,null,"Categorias"]
[null,null,"Receita de vendas"]
[null,null,"Custo de vendas"]
[null,null,"Receita"]
[null,null,"Vendas e marketing"]
[null,null,"Pesquisa e desenvolvimento"]
[null,null,"Geral e administrativo"]
[null,null,"Impostos"]